{"text_format":"1","workbook":"xlsx","n_sheets":3,"sheets":["Temp1","Original_text","ForCode"],"not_rendered":{"charts":0,"images":0,"macros":1,"external_links":0,"defined_names":0,"comments":0,"pivot_tables":0},"unopened":[],"bounds":{"document_bytes":16777216,"sheet_cells":100000,"rows_first":2000,"rows_last":500,"rows_between":2000,"halvings":0,"cell_chars":16384,"cell_head_chars":4096},"cells_cut":0,"cells_raw":0,"read":"whole","date_system":"1900"}

{"sheet":"Temp1","index":0,"n_rows":419,"n_cols":2,"rows_kept":419,"cut":false,"hidden":false,"merged":[]}
[]
["A","hotelspa giant 10\" stainless steel rainfall square showerhead solid brass adjustable extension arm"]
["A","12inch rain shower head nearmoon high pressure stainless steel bath shower ultra thin rainfall showerhead waterfall body covering silicone nozzle powerful spray performance 12'' round "]
["A","lordear f01082ch solid square ultra thin 304 stainless steel 12inch adjustable rain shower head polish chrome waterfall full body coverage silicone nozzle easy clean install"]
["A","lumospa rainfall shower head heavy duty solid stainless steel unit luxury high pressure replacement bathroom modern polished chrome large round rainhead universal wall ceiling mount"]
["A","shower head high pressure rain luxury modern chrome look easy tool free installation perfect adjustable heavy duty universal replacement your bathroom shower heads"]
["A","showermaxx premium shower head luxury spa rainfall high pressure 6\" removable water restrictor high flow rain fixed showerhead polished chrome finish bring spa your home"]
["A","hansgrohe 27493001 12inch raindance s 300 air shower head chrome"]
["A","shower head high pressure rainfall shower heads warmspray 9'' luxury thin top abs rain shower head amazing rainfall spray shower relaxation"]
["A","dreamspa all chrome water temperature controlled color changing 5 setting led shower head top brand manufacturer color led lights changes automatically according water temperature"]
["A","waterpik shower head flexible neck 6 mode rainfall rain shower 2.5 gpm white cf 201"]
["A","moen s6320 velocity two function rainshower 8inch showerhead immersion technology 2.5 gpm flow rate chrome"]
["A","delta single spray touch clean rain shower head stainless rp50841ss"]
["A","6inch high pressure rainfall massage shower head disassembled clean nozzles bathroom showerhead low flow showers wall mount chrome removable water restrictor adjustable metal swivel ball"]
["A","wassa high pressure shower head 3\" anti clog anti leak fixed chrome showerhead adjustable metal swivel ball joint filter ultimate shower experience even low water flow pressure"]
["A","shower head kzkj high pressure air injection rainfall adjustable showerheads anti clog rain showerhead chrome"]
["A","6 function adjustable luxury shower head high pressure boosting wall mount bathroom showerhead low flow showers chrome"]
["A","kohler k 10282 ak cp forte single function katalyst showerhead polished chrome"]
["A","shower massage head mist high pressure boosting multi function massager rainfall showerhead low flow showers adjustable water saving nozzle brushed nickel"]
["A","hansgrohe 26465001 croma 220 showerhead chrome"]
["A","speakman s 2252 orb signature brass icon anystream high pressure adjustable shower head oil rubbed bronze"]
["B","wyjp 12inch large square rain showerhead stainless steel high pressure shower head polish chrome finish ultra thin waterfall full body coverage silicone nozzle easy clean install"]
["B","shower head limited time sale rainfall high pressure 6\" rain high flow fixed luxury chrome showerhead removable water restrictor best relaxation spa"]
["B","aquaspa giant 9inch diagonal square rain shower head plus 11inch solid brass angle adjustable extension arm 121 jets rub clean nozzles front back all chrome finish sleek square design"]
["B","sr sun rise luxury 12inch large square stainless steel shower head high pressure rainfall showerhead ultra thin water saving chrome finish 2.5 gpm"]
["B","12'' square rain showerhead 11'' adjustable extension arm large stainless steel high pressure shower head ultra thin rainfall bath shower silicone nozzle easy clean install"]
["B","kiarogВ® 12inch 12'' rain brushed shower head 12inch side 1 16'' ultra thin showerheads 30 cm * 30 cm stainless steel shower"]
["B","sarlai solid square ultra thin 304 stainless steel brushed nickel 12inch adjustable rain shower head waterfall full body coverage silicone nozzle"]
["B","large rainfall shower head voolan adjustable 12'' luxury showerhead bathroom high flow stainless steel bath shower best relaxation universal wall ceiling mount square "]
["B","lordear sle16003 solid square ultra thin 304 stainless steel brushed nickel 10inch adjustable rain shower head solid brass brushed nickel 11inch adjustable extension arm"]
["B","rain shower head stainless steel new 2019 high pressure 8 rainfall bathroom powerful spray shower heads best high flow fixed luxury chrome spa showerhead adjustable metal swivel ball"]
["B","rozin bathroom replacement 16inch square rainfall shower head led colors top sprayer brushed nickel finish"]
["B","healthylifestyle shower head rainfall high pressure 9.5\" adjustable extension arm 109 self clean jets chrome white brushed nickel"]
["B","rozin led light 16inch rainfall shower head bathroom square top sprayer oil rubbed bronze black "]
["B","8inch rain shower head waterpoint best high pressure rainfall showerhead brass swivel ball polished chrome uses 30 less water"]
["B","lordear f001082ss solid square ultra thin 304 brushed stainless steel 12inch adjustable rain shower head waterfall full body coverage silicone nozzle easy clean install"]
["B","shower head waterfall showerhead high pressure rainfall shower head polish chrome finish ultra thin silicone nozzle durable easy install"]
["B","hiendure stainless steel bathroom square rainfall shower head 12inch oil rubbed bronze"]
["B","premium rain shower head 12inch square ultra thin luxury spa experience high pressure full body cover adjustable rainfall showerhead stainless steel 304 chrome finish silicone nozzles happy li"]
["B","lordear f01080ch 10inch rejuvenator rainforest rainmaker giant shower head 10inch 304 stainless steel showerhead polished chrome"]
["B","rainfall shower head bronze finish 9inch large overhead rain showerhead high flow big waterfall luxury rainshower heads oil rubbed bronze"]
["B","dreamspa 1489 aquafan 12inch all chrome rainfall shower head color changing led lcd temperature display 12\""]
["B","12inch shower head 15inch extension arm nearmoon square rain shower heads пјЊhigh pressure large stainless steel rainfall showerhead shower arm waterfall full body coverage easy install"]
["B","hansgrohe 27474001 raindance downpour air showerhead 10inch chrome"]
["B","hansgrohe 28417001 raindance imperial square air shower head chrome"]
["B","hansgrohe 28403001 raindance imperial 600 air shower head chrome"]
["B","moen s6320ep velocity two function 8inch diameter eco performance rainshower showerhead chrome"]
["B","grohe 27816000 rainshower f series 10\" ceiling shower head"]
["B","speakman s 2005 hb pb hotel anystream high pressure 2.5 gpm adjustable shower head polished brass"]
["B","waterpik shower head high pressure 6 mode rain shower 2.5 gpm chrome vld 633"]
["B","artbath shower trim ceiling mounted 12inch rain shower head valve shower set stainless steel chrome finished"]
["B","grohe 28373000 rainshower cosmopolitan 210 1 spray showerhead chrome"]
["B","moen waterhill one function 10inch diameter rainshower showerhead brushed nickel"]
["B","high sierra's all metal watersense certified 1.8 gpm high efficiency low flow showerhead available chrome brushed nickel oil rubbed bronze polished brass"]
["B","speakman s 3015 retro anystream solid brass high pressure adjustable shower head polished chrome"]
["C","fabricmcc rainfall shower head high pressure 9.2\" round shower head bathroom ultra thin waterfall showerhead luxury full chrome finish shower head"]
["C","rozin bathroom 20inches rain shower head chrome brass ultrathin shower top sprayer ceiling mounted"]
["C","kes all metal 8inch shower head fixed mount rainfall style stainless steel brushed nickel j203s8 2"]
["C","hotelspa mobilis tm 4 way adjustable high pressure 9.5\" rainfall showerhead 109 self clean jets chrome"]
["C","viver shower head nine inch certified shower heads adjustable high pressure rain shower head easy installation no tools required chrome"]
["C","purelux rainfall shower head 16inch extra long stainless steel shower arm brushed nickel finish 5 year warranty"]
["C","albustar rainfall shower head high pressure shower head 8.5'' luxury polished chrome rain shower head spa showerheads easy install"]
["C","vida alegria rain shower head 8inch soft rain 2.5 gpm oil rubbed bronze "]
["C","delta single spray rain shower head chrome 52685 pk"]
["C","artbath 12inch rain shower head extra large fixed mount rainfall shower head ultra thin stainless steel showerhead adjustable swivel 1 2 ball joint chrome fnished"]
["C","yodel 12inch solid square ultra thin rainfall shower head brushed stainless steel"]
["C","shower head blusmart round chrome showerhead rain shower head filter white waterproof rubber coil anti clog silicone nozzle prevent leaking comfortable shower experience"]
["C","rainfall shower head stainless steel high pressure rain shower head self cleaning nozzle universal shower head adjustable metal swivel ball joint bathroom bath tub shower stall"]
["C","jomoo square rainfall shower head 8.66inch face high pressure showerhead extension arm wall mounted overhead waterfall raincan shower premium chrome"]
["C","brushed nickel 8inch rain shower head stainless steel back brass swivel ball joint"]
["C","koko brand rain16 16inch solid square ultra thin rain shower head polished stainless steel chrome "]
["C","shower head 20 cm large high pressure rainfall shower head bathroom fixed spray mount made 201 stainless steel round waterfall showerhead universal fitting polished stainless steel finish"]
["C","hotel spa emerald ultra luxury 8inch chrome face rainfall shower head without arm "]
["C","yodel 12inch solid square ultra thin stainless steel rain shower head chrome stainless 304 steel"]
["C","modona 10\" rain shower head \"s\" long shower arm flange satin nickel 5 year warrantee"]
["C","bwe 16inch round stainless steel shower head rain style showerhead chrome ultra thin"]
["C","delta rp52382 universal showering components touch clean raincan showerhead chrome"]
["C","shower head high pressure rainfall 6\" stainless steel luxury rain flow adjustable brass swivel silicone nozzles power spray homequisite home fixed spa massage relaxation"]
["C","drisen products 8inch rain shower head rain style chrome finish solid brass adjustable extension arm"]
["C","shower head gintenco high pressure rainfall large 12inch round rain shower heads 360 degrees adjustable fixed polished chrome finished"]
["C","hiendure stainless shower head 12inch square "]
["C","showerhead rainfallhigh pressure large square rain shower head stainless steel celling fixed mounted joint chrome showerhead relaxing enjoyable shower experience 8inchs showerhead "]
["C","purelux rain shower head brushed nickel finish modern style 8inches shower heads brass swivel ball connector flow restrictor"]
["C","luxe rainluxe round 8inch rainfall shower head replacement high pressure high flow chrome finish"]
["C","waterpik aad 773t dualspray 2inn1 adjustable rain shower head"]
["C","kuhl 12inch stainless steel shower head stylish easy install showerhead adjustable silicone nozzle full coverage saves more water every shower"]
["C","rozin 12inch led color bathroom square shower head rainfall over head spray brushed nickel"]
["C","ansvip 12inch large rain shower head ultra thin luxury rainfall showerhead bathroom sus304 stainless steel waterfall showerhead adjustable metal swivel ball joint square"]
["C","hiendure 16inch solid square ultra thin 304 stainless steel rainfall shower head brushed stainless steel"]
["C","delta rp62283rb universal showering components touch clean raincan showerhead venetian bronze"]
["C","wantba 8\" wide 157 jets rainfall wall mount shower head showerhead swivel metal ball connector polished chrome"]
["C","waterfall shower head square 8inch x 12inch big water showerheads brass chrome wall concealed showers bathroom"]
["C","moen 21007srn vitalize 7inch rain shower head featuring pressurized invigorain technology spot resist brushed nickel"]
["C","ghomeg square ultra thin 304 stainless steel brushed nickel 12inch adjustable rain shower head solid brass 11inch adjustable"]
["C","modona 10\" rain shower head 16\" long shower arm flange rubbed bronze 5 year warrantee"]
["C","20'' square stainless steel rain shower head rainfall bathroom top sprayer new"]
["C","fyeer 16\" led rainfall shower head square ultra thin luxury bathroom showerhead ceiling mounted 3 layer brushed nickel 304 stainless steel temperature sensor 3 colors chaning"]
["C","hansgrohe 26727001 crometta showerhead chrome"]
["C","luxury square rainfall shower head 12inch face brass swivel joint full 304 stainless steel waterfall full body coverage showerhead"]
["C","oxygenics curve fixed showerhead chrome"]
["C","luckin 12inch ultra thin rainfall shower head stainless steel high pressure showerhead polished chrome finish modern waterfall rainhead bathroom"]
["C","shower head hdoq 6inch rainfall high pressure luxury chrome fixed showerhead removable water restrictor adjustable metal swivel ball joint universal wall ceiling mount"]
["C","delta 75599c hydrorain 2inn1 5 spray 6 fixed shower head pause chrome"]
["C","rozin brushed nickel 16inch rainfall shower head square bath top spray"]
["C","rozin chrome bathroom rainfall shower head 8inch square top sprayer"]
["C","rain 8inch square shower head chrome ultra thin waterfall rain showerhead sus304 stainless steel universal fit bathroom 8inch "]
["C","rainfall shower head heavy duty solid stainless steel unit luxury high pressure replacement bathroom modern polished chrome large square rainhead universal wall ceiling mount 12inches"]
["C","bwe 8'' stainless steel shower head rain style showerhead elegantly designed 8inch diameter ultra thin teflon tape brushed nickel"]
["C","lordear brass 16inch long polished chrome extender tube shower head extension shower arm fixed rain shower head shower arm flange"]
["C","american standard 1660.680.002 8inch rain easy clean showerhead polished chrome"]
["C","aquafaucet 10inch square stainless steel shower head led oil rubbed bronze"]
["C","3s 304 stainless steel rainfall shower head 12inch large square waterfall shower head rustproof high pressure full body cover adjustable "]
["C","abs waterfall showerheads chrome bathroom big water showers 200mm shower heads"]
["C","kingston brass k136a5ck victorian 8inch diameter brass showerhead 12inch shower arm oil rubbed bronze"]
["C","kes 2.5 gpm rain shower head 8inch bathroom brushed nickel fixed mount j201s8 2"]
["C","rain shower head high pressure 8 sus 304 stainless steel rainfall bathroom powerful spray shower heads adjustable metal swivel ball joint best relaxation spa chrome "]
["C","new 2018 high pressure 3 function giant designer rain shower head w high power pulsating massage whisper quiet tm technology more power less noise brass metal connection nut anti clog jets"]
["C","rain shower head stainless steel new 2018 high pressure 4 rainfall bathroom powerful spray shower heads best high flow fixed luxury chrome spa showerhead adjustable metal swivel ball"]
["C","a flow luxury square large 8\" stainless steel rainfall shower head contemporary thin sleek design enjoy soothing invigorating spa like experience"]
["C","akdy az 6021 bathroom chrome shower head 8inch"]
["C","hiendure 16inch rainfall square stainless steel shower head oil rubbed bronze"]
["C","large rainfall shower head voolan 12\" high flow stainless steel bath shower high pressure adjustable luxury showerhead waterfall full body coverage silicone nozzle 12\" round "]
["C","senlesen bathroom square 10inch rainfall shower head fixed mount oil rubbed bronze"]
["C","16\"rainfall shower head yawall ultra thin stainless steel high polish chrome luxury durable rain showerhead rain style waterfall effect enjoy invigorating spa like shower"]
["C","kes j302 large 6inch ergonomic rotating shower head fixed mount 4 function polished chrome"]
["C","showermaxx premium 8inch square high pressure luxury spa rainfall shower head removable restrictor waterfall rainshower self cleaning high flow nozzles oil rubbed bronze finish rain showerhead"]
["C","modona 10\" rain shower head satin nickel 5 year warrantee"]
["C","rainfall shower head high pressure water luxury chrome finish 6\" showerhead adjustable brass ball joint bring spa your home"]
["C","shower head 6inch luxury rainfall high pressure boosting treblewind high flow rain fixed chrome showerhead adjustable rainheads bathroom removable water restrictor best spa relaxation"]
["C","delta hydrorain 5 spray touch clean 2inn1 rain shower head venetian bronze 58580 rb pk"]
["C","hudson reed square rainfall showerhead 15.75\" chrome finish"]
["C","eternleaf 8\" rainfall shower head high pressure stainless steel fixed showerhead self cleaning nozzles brushed nickel large round rainhead wall ceiling mounted"]
["C","ratop shower head high pressure rainfall 8\""]
["C","showermaxx fixed high pressure rainfall shower head polished chrome finish round 8inch wide rainshower jets luxury hotel spa rainhead 2.5 gpm high flow powerful waterfall showerhead"]
["C","senlesen bathroom 20inch round rainfall top shower head ceiling mounted oil rubbed bronze"]
["C","turbospa 3inch high pressure shower head w flow restrictor melts stress into bliss full power 42 nozzle wide spray high flow showerhead drenches you fast no dry spots guaranteed chrome"]
["C","kingston brass k125a5 victorian raindrop shower head 10inch oil rubbed bronze"]
["C","aquarius overhead fixed shower head 6\" luxury spa grade rainfall high pressure rain showerhead 6 spray settings adjustable metal swivel ball joint free teflon tape premium chrome finish"]
["C","luxury rainfall shower head home spa square waterfall showerhead adjustable removable ultra thin 8inch stainless steel rain shower head high pressure water flow 2 free shower caps"]
["C","8inch rain shower head 100 stainless steel new 2018 upgrades ultra thin powerful high pressure top spray bathroom rainfall showerhea luxury replacement bathroom universal wall ceiling mount"]
["C","kunmai solid brass 10\" waterfall square fixed rain shower head two functional chrome"]
["C","kaphome bathroom 20inches rain shower head ultrathin shower top sprayer ceiling mounted brush nickel"]
["C","round 8inch rainfall shower head fixed wall ceiling mounted chrome rain showerhead adjustable stainless steel swivel ball adding luxury spa waterfall feel your bathroom "]
["C","shower head high pressure adjustable rain showerhead wall mount chrome against low water pressure 5 setting 2.5 gpm 4.1inch"]
["C","aquastar elite high pressure 7\" giant 6 setting luxury spa rain shower head microban antimicrobial anti clog jets more power less cleaning solid brass ball join all chrome finish"]
["C","besy 12inch rain shower head 12\" square rainfall high pressure stainless steel bath shower head 1 16\" ultra thin waterfall full body coverage silicone nozzle non fingerprint brushed finish"]
["C","moen 21007 vitalize rainshower shower head only 1 2\" connection chrome"]
["C","5 functions handheld shower head set 5innn1 multi functional high pressure shower head 9inches big top overhead showerhead rotatable rainfall shower head 5 spray patterns 360В° rotatable joint"]
["C","kingston brass k136a5 designer trimscape showerscape 8\" round shower head oil rubbed bronze"]
["C","8inch luxury rainfall square shower head ultra thin stainless steel durable showerhead waterfall effect water saving chrome finish"]
["C","lovedima luxury dual function waterfall showerhead brass rain shower head set chrome"]
["C","7 colors 8\" rainfall round bathroom shower head rgb led flash light"]
["C","akdy 6\" extra large bathroom rainfall spray jet massage fixed shower head chrome sh0015 "]
["C","hotelspa square stainless steel 8inch shower head clear acrylic rim solid brass adjustable extension arm"]
["C","sunbeam sh01690 rainfall round shower head"]
["C","toto ts111b12 pn modern series 12inch round aero rain shower head polished nickel"]
["C","3 functions handheld shower head set 3innn1 high pressure shower head 8inches big top overhead showerhead rotatable rainfall shower head 3 spray patterns 360В° rotatable joint baban"]
["C","speakman s 2251 mb signature icon anystream high pressure adjustable solid brass shower head 2.5 gpm matte black"]
["C","waterpik xmt 633 high pressure 6 mode rain shower head 2.5 gpm chrome"]
["C","grohe 28 521 be0 movario 5 shower head integrated shower arm sterling infinity"]
["C","yoo.mee magic rain shower heads led mirror display water gallon water temperature water saving energy saving"]
["C","cascada classic design 31inch 600mmx800mm large rain shower set waterfall led rectangle recessed ceiling mount 4 function shower head remote control stainless steel polish finish"]
["C","cascada classic design 31inch 600mmx800mm large rain shower set waterfall led rectangle recessed ceiling mount 4 function shower head remote control stainless steel polish finish"]
["C","hm luxury led rain shower head large rain led shower set waterfall shower head embedded ceiling 600x800 rainfall spout"]
["C","senlesen rainfall 16inch square shower head high pressure top spray without shower arm ceiling mount brushed nickel"]
["C","ollypulse 12'' square color changing led stainless steel rain shower head oil rubbed bronze finish black"]
["C","senlesen led light 16inch rainfall shower head bathroom square top sprayer oil rubbed bronze"]
["C","chrome brass 24inches top shower head bath square spray head"]
["C","grohe 26 471 rainshower f series 1.8 gpm single function rain shower head starlight chrome"]
["C","gowe multi function shower head 360500mm stainless steel ceiling rain shower hydro power led waterfall shower bathroom accessories"]
["C","hm spa auto thermostat shower set 3650cm led rain shower head 6 body spray bathroom hand spray"]
["C","aquadance 7inch 6 setting rainfall showerhead anti microbial microban protection mold mildew bacteria clog free wave blue jets chrome finish"]
["C","delta rp53496ss universal showering components touch clean raincan showerhead stainless"]
["C","ggstudy 12inch square stainless steel shower head rain style shower head oil rubbed bronze black "]
["C","rain shower head"]
["C","tibbers shower head extension shower arm high pressure rainfall showerheads multi angle adjustable self cleaning nozzle sleek full chrome finish"]
["C","shower head rainfall high pressure 8\" rain high flow fixed luxury chrome stainless steel showerhead removable water restrictor adjustable metal swivel joint best relaxation spa"]
["C","shiratori stainless steel shower head rain style showerhead waterfall effect elegantly designed high polish chrome 8inch diameter ultra thin"]
["C","grohe 26457en0 26457 euphoria 260 showerhead"]
["C","rohl 1027 8stn ac51x ib 2 1027 8 bordano raincan shower head 6\" satin nickel"]
["C","aussie rain shower head 9\" extension chrome"]
["C","toto ts112b12 cp classic series 12inch round aero rain shower head polished chrome"]
["C","rainshower cosmopolitan 310 shower head 1 spray starlight chrome"]
["C","8\" rainfall shower head 2.5gpm brass connector premium chrome"]
["C","rainshower f series 1 spray 20 ceiling showerhead"]
["C","hansgrohe 28450821 chroma 160 showerhead brushed nickel"]
["C","senlesen 16inch solid square led light rain shower head high pressure rainfall shower head polished chrome"]
["C","kohler k 10282 ak bn forte single function katalyst showerhead vibrant brushed nickel"]
["C","large stainless steel showerhead adjustable arm quality 10inch round shower head easy adjustment ball joints fused edges won't split open silicon water jets superior flow"]
["C","relexa rustic 100 5 spray showerhead"]
["C","hm 24\"31\" led shower head sus304 embeded ceiling 3 function big waterfall curtainfall rainfall remote lighting"]
["C","hm concealed thermostatic shower set 6body jet led shower head 15x31.5\" 38x70cm rainfall mist spray waterfall water column"]
["C","hansgrohe raindance rainfall 180 air dn 15 28433400 2 jet shower head white chrome hansgrohe"]
["C","hansgrohe 27437401 puravida showerhead 400 arm white chrome"]
["C","kohler k 9245 bn 2.5 gpm moxie showerhead wireless speaker vibrant brushed nickel"]
["C","toto ts111bl12 pn modern series 12inch round 2 gpm aero rain shower head polished nickel"]
["C","aqua spa 1240 high power 9.5\" rainfall showerhead individual angle adjustable swivel jets"]
["C","high pressure shower headпјЊnearmoon 6inch stainless steel rain showerhead ultra thin design best pressure boosting awesome shower experience even low water flow pressure high flow shower head "]
["C","waterpik large rainfall rain shower head"]
["C","luxury rainfall shower head urhome 10inch wide spa like bathroom easy install no tools required eco friendly high flow showerhead soothing fun"]
["C","alfi brand rain24s bss square ultra thin rain shower head 24inch brushed stainless steel"]
["C","hansgrohe 27373001 raindance e 420 air 2 jet showerhead showerarm chrome"]
["C","kohler k 13688 bgd 8inch contemporary round rain showerhead vibrant moderne brushed gold"]
["C","hansgrohe 10925001 starck shower collection showerhead arm chrome"]
["C","moen s6340bn 90 degree 6\" single function showerhead immersion technology 2.5 gpm flow rate brushed nickel"]
["C","hiendure 12inch ceiling mount stainless steel round rainfall shower head oil rubbed bronze"]
["C","rozin rainfall 16inch bathroom shower head square top spray black color"]
["C","universal chrome 8 function fixed shower head american standard showerhead w anti clogging nozzles best high low pressure water saving rain massage spa output"]
["C","toto ts112bl12 cp classic series 12inch round 2 gpm aero rain shower head polished chrome"]
["C","lovedima 20\"x40\" stainless steel rectangle shower head rain showerhead set without led brushed nickel "]
["C","jones stephens s0184bn 6inch shower head tips brushed nickel"]
["C","grohe 28783en0 rainshower cosmopolitan 400 16\" jumbo shower head"]
["C","hansgrohe 26478821 croma showerhead brushed nickel"]
["C","delta 52283 rb universalshoweringcomponents single setting raincan shower head venetian bronze"]
["C","delta rp62955ss universal showering components rectangular showerhead stainless"]
["C","hansgrohe 27495001 raindance s 150 air 3 jet shower head chrome"]
["C","aqua elements ultra thin rainfall high pressure shower head bathroom stainless steel 8inch square adjustable tools free installation"]
["C","vida alegria rainforest shower head 14x8inch overhead rain shower chrome "]
["C","fontana luxury bathroom shower set 16\" rainfall square led shower head double function valve brass handheld shower stainless steel chrome finish"]
["C","minco shop shower head high pressure rainfall shower heads 8\"luxury modern chrome look high flow rain fixed showerhead rain shower head relaxation comfortableness"]
["C","speakman s 2763 kubos square rain shower head polished chrome"]
["C","40\" rectangular brushed stainless steel led rainfall large shower head bathroom bd011 1"]
["C","hansgrohe 27387401 hg raindance select e300 showerhead"]
["C","moen s6345epbn velocity eco performance two function 8 1 2\" diameter spray rainshower showerhead brushed nickel"]
["C","hansgrohe 26523001 croma select showerhead chrome"]
["C","alfi brand rain12s 12inch solid square ultra thin rain shower head brushed stainless steel"]
["C","grohe 26502en0 rain shower 310 smartactive 2 spray head set brushed nickel"]
["C","delta single spray touch clean rain shower head venetian bronze rp48686rb"]
["C","aquadance 6inch 6 setting rainfall showerhead anti microbial microban protection mold mildew bacteria clog free sunset blue jets chrome finish"]
["C","moen s6365orb voss 6\" single function rainshower showerhead immersion technology 2.5 gpm flow rate oil rubbed bronze"]
["C","relexa ultra 100 5 spray showerhead integrated shower arm"]
["C","showeryn rainfall shower head 4 way adjustable high pressure 9\" chrome"]
["C","aquacare hotelspa filtered shower head 5inch face 6 setting showerhead 3 stage shower filter cartridge inside brushed nickel finish "]
["C","fontana 8\"sierra oil rubbed bronze multi color led shower head adjustable body jets mixer solid brass "]
["C","16inch large square rain showerhead stainless steel high pressure shower head polish chrome finish ultra thin waterfall full body coveragcoverage silicone nozzle easy clean install"]
["C","rainmaker rainfall shower head 6'' inch rain high stainless steel 304 bath shower high pressure bath ceiling adjustable showerhead 54 silicone nozzles"]
["C","hansgrohe 04340000 raindance s 100 air 3 jet showerhead chrome"]
["C","bluehills premium large 12inch square high pressure 304 stainless steel rain rainfall shower head polished ten layer chrome finish 1 feet square thread sealant tape"]
["C","rozin bathroom square 12inch rain top spray shower head oil rubbed bronze"]
["C","led shower head rainfall 3 color changing 12\" fixed showerheads ultra thin anti clog 304 stainless steel shower spray matte black"]
["C","sakaika sh ls1cp 5inch multi function adjustable 2.5 gpm fixed shower head mist spray shower massage luxury bell multifunction showerhead collection modern polished chrome finish"]
["C","la toscana 86cr750 novello wall mount shower head arm flange chrome"]
["C","kohler k 13689 cp 10inch contemporary round rain showerhead polished chrome"]
["C","genesis bathroom creations 8inch brass rain shower head smart spray includes locking extension arm"]
["C","moen 3638orb 4 3 8inch diameter four function fixed showerhead oil rubbed bronze"]
["C","shower head luxury spa rainfall high pressure 8\" high flow rain fixed showerhead polished chrome finish"]
["C","grohe 26 469 rainshower allure 1.8 gpm single function rain shower head starlight chrome"]
["C","hansgrohe 27380001 raindance e 240 air 1 jet showerhead chrome"]
["C","delta 3 spray touch clean h2okinetic shower head venetian bronze 52687 rb"]
["C","hansgrohe 26724821 crometta showerhead brushed nickel"]
["C","hotelspa square stainless steel 8inch shower head clear acrylic rim without arm "]
["C","waterpik rsd 133 rain fall shower head"]
["C","alfi brand rain16s 16inch solid square ultra thin rain shower head polished stainless steel"]
["C","cascada 16inch ceiling mount round rainfall led shower head stainless steel include shower arm "]
["C","healthy home rainfall shower head 8inches stainless steel luxury high pressure replacement bathroom spa experience polished chrome easy installation "]
["C","8\" rainfall shower head candywe high pressure stainless steel rain showerhead silicone nozzle ultra thin adjustable swivel polished chrome shower head thread seal tape included easy install"]
["C","kohler k 13692 cp 8inch traditional round rain showerhead polished chrome"]
["C","moen s6360bn 8\" single function rainshower showerhead immersion technology 2.5 gpm flow rate brushed nickel"]
["C","shower head high pressure 4inch showerhead 5 setting adjustable shower head rain shower head 2.5 gpm showerhead flow restrictor high flow shower heads bathroom powerful shower head water saving"]
["C","new tempesta cosmopolitan 100 4 spray showerhead"]
["C","elements design dk1241 hot springs rain drop shower head 8\" diameter polished chrome"]
["C","american standard 1660788.278 universal no family 8\" square rain showerhead legacy bronze"]
["C","kingston brass kx8228 designer trimscape abs square 12\" x 12\" shower head satin nickel"]
["C","hansgrohe 26481821 raindance 260 x 260 square showerhead brushed nickel"]
["C","rohl u.5206apc u.5206 perrin rowe single function shower head 5\" polished chrome"]
["C","toto ts111b12 cp modern series 12inch round aero rain shower head polished chrome"]
["C","kohler k 13689 bv 10inch contemporary round rain showerhead vibrant brushed bronze"]
["C","powerandsoul cosmopolitan 25 retro fit 2 function hand shower showerhead bundle 2.5 gpm"]
["C","dax round rain shower head ultra thin brass body chrome finish d 1230 cr "]
["C","atlantis 6 oil rub bronze rain shower head combination"]
["C","kunmai modern solid brass rainfall square pure black rain shower head three size 8inches "]
["C","moen s6310an exacttemp single function rainfall shower head antique nickel"]
["C","moen 26017 2.5 gpm rain shower head halo collection chrome"]
["C","whitehaus whosa10 6 bn showerhaus round rainfall showerhead 62 spray nozzles 6inch brushed nickel"]
["C","grohe 26504000 rain 310 smart active 2 spray cube shower head set starlight chrome"]
["C","kohler k 16245 cp margaux multifunction showerhead polished chrome"]
["C","grohe 26 472 rainshower cosmopolitan 1.8 gpm single function rain shower head starlight chrome"]
["C","alfi brand rain12r 12inch solid round ultra thin rain shower head polished stainless steel"]
["C","kunmai modern luxurious 20\"x40\" led stainless steel rectangle ceiling rain shower head led brushed nickel "]
["C","haoxin 8inch rainfall shower head s shaped shower arm fixed rain showerhead set wall mounted brushed nickel finished shwa01n"]
["C","kingston brass k225k15 designer trimscape victorian 10inch showerhead 17inch rain drop shower arm oil rubbed bronze"]
["C","speakman s 3013 assana anystream high pressure adjustable shower head polished chrome"]
["C","moen s176epbl annex one function diameter rain shower eco performance showerhead"]
["C","american standard 1660.610.224 10inch easy clean rain showerhead oil rubbed bronze"]
["C","vida alegria 5inch spashower high pressure shower head 2.5 gpm 5 sprays water saver brushed nickel "]
["C","power soul cosmopolitan 190 shower head 4 sprays"]
["C","santec 70801388 bright pewter shower 12\" rain shower head 708013"]
["C","moen s112 waterhill one function 10inch diameter rainshower showerhead chrome"]
["C","waterpik rpb 173 2.5 gpm rainfall shower head chrome"]
["C","alfi brand led8s pc polished chrome 8inch square multi color led rain shower head"]
["C","shower head toolson high pressure showerhead anti clog nozzle adjustable brass swivel joint chrome finish "]
["C","mirabelle mirrs1025rcp 2.5 gpm single function round rain shower head"]
["C","hansgrohe 27457001 raindance s 120 air 3 jet shower head chrome"]
["C","rohl 1047 8stn 1047 8 bordano raincan shower head 12\" satin nickel"]
["C","rohl u.5204ib u.5204 perrin rowe single function shower head 12\" inca brass"]
["C","remer nameeks 359ssl shower head"]
["C","rohl 1047 8tcb bordano 12\" raincan shower head tuscan brass"]
["C","mirabelle mirrs825scp 2.5 gpm single function square rain shower head"]
["C","american standard t184502.002 t184.502.002 polished chrome times square tub shower trim package single function rain shower head"]
["C","alfi brand rain20r bss round ultra thin rain shower head 20inch brushed stainless steel"]
["C","showermaxx elite series 6 spray settings 6inch adjustable high pressure rainfall shower head maxx imize your shower easy remove flow restrictor rain showerhead polished chrome finish"]
["C","high sierra's all metal 1.5 gpm high efficiency low flow showerhead available chrome brushed nickel oil rubbed bronze polished brass"]
["C","american standard 9035001.278 spectra rain showerhead legacy bronze"]
["C","kunmai 24\" led stainless steel square ceiling rain shower head 2 water inlets chrome led "]
["C","atlantis 2 rain shower head arm brushed nickel"]
["C","rohl 1047 8apc bordano raincan shower head 12\" polished chrome"]
["C","jiayoujia 16\"x32\" rectangle 304 stainless steel ceiling rain shower head"]
["C","yazoo 12inch rain shower head ultra thin 304 stainless steel large square high pressure spa showerhead silicone nozzle easy clean install"]
["C","pfister marielle raincan showerhead brushed nickel"]
["C","jiayoujia rainfall wall mounted solid brass shower set six body spray jets solid black finish 10\" shower head thermostatic shower valve "]
["C","fidgetfidget shower head led color changing temperature sensor stainless steel rain chrome"]
["C","riobel 408 c universal polished chrome 8\" rain can shower head"]
["C","dfewsf bathroom accessories 8inch round black oil bronze brass bathroom rain shower head black"]
["C","delta rp52382ss universal showering components touch clean raincan showerhead stainless"]
["C","airjet 400 high pressure luxury multi function shower head w high velocity flow accelerator tm hydro engine more power less water latest style giant 5\" face plus push button flow control"]
["C","hudson reed 12\" apron style rain shower head 13\" wall mounted arm polished chrome finish"]
["C","kojox 12inch rain shower head 304 stainless steel 2mm ultra thin high pressure rainfall showerhead water saving matte black shower head "]
["C","12'' square stainless steel rain shower head rainfall bathroom top sprayer ultra thin showerheads new"]
["C","10\"rainfall shower head toogou ultra thin stainless steel high polish chrome luxury durable rain showerhead rain style waterfall effect enjoy invigorating shower"]
["C","kunmai luxury dual function wall mounted waterfall rain shower head solid brass chrome"]
["C","moen s176bl annex one function diameter rain shower showerhead matte black"]
["C","riobel 492 c universal polished chrome 12\" rain shower head"]
["C","kohler k 13693 cp 10inch traditional round rain showerhead polished chrome"]
["C","delta single spray touch clean shower head stainless rp51305ss "]
["C","kohler k 14786 bn loure single function showerhead vibrant brushed nickel"]
["C","alfi brand led16s bn brushed nickel 16inch square multi color led rain shower head"]
["C","grohe 27823en0 rainshower retro showerhead infinity brushed nickel"]
["C","kingston brass k124a5 victorian raindrop showerhead oil rubbed bronze"]
["C","hansgrohe 28471921 raindance c 150 air shower head rubbed bronze"]
["C","coeur designs premium 6inch 50 jet stainless steel rainfall shower head delivers powerful stress relieving massage like experience quality construction aesthetically pleasing "]
["C","12inch ceiling mount square rainfall led shower head stainless steel chrome finish include shower arm "]
["C","hansgrohe 27447821 raindance e 120 air 3 jet shower head brushed nickel"]
["C","toto ts111bl12 cp modern series 12inch round 2 gpm aero rain shower head polished chrome"]
["C","cascada 20inch ceiling mount round rainfall led shower head brushed nickel without shower arm "]
["C","santec 70803310 polished chrome 12\" square rain shower head"]
["C","rozin gold polished led light 12inch square rainfall showerhead overhead sprayer"]
["C","alfi rain16s pss solid polished stainless steel 16\" square ultra thin rain shower head w x l 15 3 4\""]
["C","votamuta 12inch led square rain shower head wall mounted ceiling mounted top shower sprayer brushed nickel "]
["C","latoscana 78pw750 morana 8\" rain shower head 12\" arm brushed nickel finish"]
["C","rozin wall mounted single lever mixer valve 10inch square rainfall shower head brushed nickel"]
["C","shower head 12inch shower head "]
["C","hansgrohe 26217001 croma showerhead chrome"]
["C","hansgrohe hg28484821 downpour 180 shower head brushed nickel"]
["C","zovajonia 8\" rainfall shower head ultra thin stainless steel high polish chrome luxury durable rain showerhead rain style waterfall effect enjoy invigorating spa like"]
["C","speakman sr 124 assana anystream multi function shower head polished chrome"]
["C","a flow8482 rainfall waterfall luxury 4.5 shower head 3 function showerhead chrome"]
["C","rain shower head unillap square wall mounted showerhead waterfall ultra thin 304 stainless steel chrome silicone nozzle 8inches "]
["C","antimicrobial anti clog high pressure 6 setting shower head aquadance microban nozzle protection growth mold mildew bacteria stronger shower "]
["C","20inch stainless steel wall mount square rainfall led shower head bushed nickel"]
["C","kohler k 13688 bn 8inch contemporary round rain showerhead vibrant brushed nickel"]
["C","fidgetfidget shower head rain shower shower head temperature changing us 24inch led"]
["C","atlantis 1 gold 10\" rain shower head 13\" high rise arm"]
["C","cascada 16inch ceiling mount round rainfall led shower head stainless steel without shower arm "]
["C","mirabelle mirrs825rbn 2.5 gpm single function round rain shower head"]
["C","mirabelle mirrs825tcp 2.5 single function rain shower head"]
["C","jaclo s208 sn satin nickel 8inch rain shower head"]
["C","euphoria cube 25 retro fit 2 function hand shower showerhead bundle 2.5 gpm"]
["C","axor 28489001 citterio showerhead chrome"]
["C","agile shop 8inch square 7 colors automatic changing led shower head bathroom showerheads sprinkler"]
["C","hansgrohe 26469001 raindance select s 240 showerhead chrome"]
["C","signature hardware 920860 12 12\" beveled square single function rain shower head brushed nickel"]
["C","rozin bathroom 10inch square rainfall shower head ultrathin top spray led light"]
["C","rainshower f series 1 spray 10 ceiling showerhead"]
["C","jiayoujia 24\" led stainless steel ceiling mount rain shower head"]
["C","12inch square rainfall led shower head brushed nickel finish"]
["C","cascada 16inch ceiling mount square rainfall led shower head stainless steel without shower arm "]
["C","fontana 20'' ceiling mount square rainfall led shower head stainless steel"]
["C","20inch luxury large bathroom rain round led shower head brushed stainless steel"]
["C","toto ts111b8 cp modern series 8inch round aero rain shower head polished chrome"]
["C","us wholesale retail 20\" stainless steel shower head polished chrome bathroom rain big showerhead"]
["C","20inch rainfall shower head waterfall bathroom ceiling mounted big shower rain have 3 water inlet 4 pcs shower arms 50050010mm "]
["C","cascada 16inch ceiling mount square rainfall led shower head oil rubbed bronze without shower arm "]
["C","isenberg hs1001wbn solid brass shower head rain head 12\" wall mount shower arm 8\""]
["C","16inch ceiling mount square rainfall led shower head stainless steel without shower arm "]
["C","16inch ceiling mount round rainfall led shower head stainless steel include shower arm "]
["C","bathroom stainless steel 16\" nickel brushed finish square 3 color led series rain shower head 74554"]
["C","ggstudy square 8inch square stainless steel shower head rain style shower head oil rubbed bronze black "]
["C","hansgrohe 27483821 raindance e 150 shower head brushed nickel"]
["C","rainshower f series 1 spray 10 showerhead"]
["C","miseno ms 650625 r bn elysa shower trim package single function rain shower head"]
["C","mirabelle mirrs1025scp 2.5 gpm single function square rain shower head"]
["C","alfi brand rain24r bss round ultra thin rain shower head 24inch brushed stainless steel"]
["C","10inch rain shower head high pressure stainless steel bath shower ultra thin rainfall showerhead waterfall body covering silicone nozzle powerful spray performance 10inch round "]
["C","akdy 8\" inch 2 setting dual mode round circular rainfall waterfall overhead shower head modern contemporary easy installation white"]
["C","hansgrohe 26528401 croma showerhead white chrome"]
["C","atlantis 18 square chrome rain shower handheld shower head"]
["C","hansgrohe 28427001 raindance c 240 air showerhead chrome"]
["C","hotelspa notilus high pressure giant 6inch luxury rain spa shower head 6 settings 2 zone antimicrobial anti clog nozzles angle adjustable metal ball joint connection all chrome finish"]
["C","alfi brand rain12s 12inch solid square ultra thin rain shower head polished stainless steel"]
["C","round rain shower head 8inch polished chrome elegant design 37 40 water energy saving"]
["C","yanksmart 12\" colorful brushed nickel brass square led rain shower head h542148"]
["C","artos f803 5bn kascade dual function shower head brushed nickel"]
["C","16inch ceiling mount round rainfall led shower head oil rubbed bronze include shower arm "]
["C","zovajonia 8\" rainfall shower head ultra thin stainless steel high polish chrome luxury durable rain showerhead rain style waterfall effect"]
["C","contemporary rain shower brushed feature forled rainfall shower head"]
["C","hiendureВ® stainless steel rainfall shower head 12inch bathroom square led shower head fixed showerhead without shower arm thin big lavatory shower head ceiling mount"]
["C","possbay bathroom shower set 24inches brass chrome square overhead temperature sensitive rainfall led shower head brass handheld"]
["C","a flow8482 luxury rain 8\" square stainless steel shower head acrylic sparkling clear glass enjoy invigorating luxurious spa like experience "]
["C","rainfall shower headпјЊstainless steel high pressure 8inch shower head replacement polish chrome bathroom ultra thin rain shower heads soft silicone self cleaning nozzles powerful spray"]
["C","kingston brass p10k1 designer trimscape victorian brass shower head 10inch high low decor arm polished chrome"]
["C","hotelspa french designer collection 7 setting fixed showerhead brushed nickel "]
["C","boann bnsh12c bn stainless steel round rain shower head 12\""]
["C","water pik ast 233e aquascape chr shower head"]
["C","kohler k 13695 bn 8inch contemporary square rain showerhead vibrant brushed nickel"]
["C","hansgrohe 27476001 raindance 180 air shower head 7inch chrome"]
["C","12inch brass shower head color changing led light round "]
["C","signature hardware 926430 8 8\" lambert 1.6 gpm single function rain shower head brushed nickel"]
["C","10inch square rainfall led shower head heavy duty metal without shower arm polished chrome "]
["C","hansgrohe 26255001 hansgrohe 26255001 hg raindance e 400 square 1 jet showerhead trim 1.8 gpm"]
["C","moen s1311 isabel 8\" two function showerhead immersion technology 2.5 gpm flow rate chrome"]
["C","bathroom 12\" colorful chrome square led rain stainless steel shower head g45210"]
["C","1.5 gpm sava fixed mount showerhead finish chrome"]
["C","alfi brand led12r bn brushed nickel 12\" round multi color led rain shower head"]
["C","alfi brand led16r pc polished chrome 16inch round multi color led rain shower head"]
["C","rainshower rustic 160 4 spray showerhead"]
["C","atlantis 15 oil rub bronze rain shower head"]
["C","antimicrobial anti clog high pressure 6 setting shower head aquadance microban nozzle protection growth mold mildew bacteria stronger shower "]
["C","brizo 81380 single function rain shower head siderna collection matte black"]
["C","atlantis 6 brushed nickel rain showerhead combination"]

{"sheet":"Original_text","index":1,"n_rows":419,"n_cols":2,"rows_kept":419,"cut":false,"hidden":false,"merged":[]}
[]
["A","HotelSpa Giant 10\" Stainless Steel Rainfall Square Showerhead with Solid Brass Adjustable Extension Arm"]
["A","12 Inch Rain Shower Head, NearMoon High Pressure Stainless Steel Bath Shower, Ultra Thin Rainfall Showerhead Waterfall Body Covering with Silicone Nozzle and Powerful Spray Performance (12'' Round)"]
["A","LORDEAR F01082CH Solid Square Ultra Thin 304 Stainless Steel 12 Inch Adjustable Rain Shower Head with Polish Chrome,Waterfall Full Body Coverage with Silicone Nozzle Easy to Clean and Install"]
["A","LumoSpa Rainfall Shower Head - Heavy Duty Solid Stainless Steel Unit - Luxury High Pressure Replacement for Bathroom - Modern Polished Chrome Large Round Rainhead - Universal Wall or Ceiling Mount"]
["A","Shower Head - High Pressure Rain - Luxury Modern Chrome Look - Easy Tool Free Installation - The Perfect Adjustable & Heavy Duty Universal Replacement For Your Bathroom Shower Heads"]
["A","ShowerMaxx Premium Shower Head - Luxury Spa Rainfall High Pressure 6\" | Removable Water Restrictor | High Flow Rain Fixed Showerhead in Polished Chrome Finish | Bring the Spa to Your Home"]
["A","Hansgrohe 27493001 12-Inch Raindance S 300 AIR Shower Head, Chrome"]
["A","Shower Head- High Pressure Rainfall Shower Heads- WarmSpray 9'' Luxury Thin Top ABS Rain Shower Head- For the Amazing Rainfall Spray Shower Relaxation"]
["A","DreamSpa All Chrome Water Temperature Controlled Color Changing 5-Setting LED Shower-Head by Top Brand Manufacturer! Color of LED lights changes automatically according to water temperature"]
["A","Waterpik Shower Head - Flexible Neck 6-Mode Rainfall Rain Shower, 2.5 GPM - White, CF-201"]
["A","Moen S6320 Velocity Two-Function Rainshower 8-Inch Showerhead with Immersion Technology at 2.5 GPM Flow Rate, Chrome"]
["A","Delta Single-Spray Touch Clean Rain Shower Head, Stainless RP50841SS"]
["A","6 Inch High Pressure Rainfall Massage Shower Head - Disassembled Clean Nozzles - Bathroom Showerhead Low Flow Showers - Wall Mount - Chrome - Removable Water Restrictor - Adjustable Metal Swivel Ball"]
["A","WASSA High Pressure Shower Head - 3\"  Anti-clog Anti-leak Fixed Chrome Showerhead - Adjustable Metal Swivel Ball Joint with Filter - Ultimate Shower Experience Even at Low Water Flow & Pressure"]
["A","Shower Head,KZKJ High Pressure Air-Injection Rainfall Adjustable Showerheads Anti-Clog Rain Showerhead Chrome"]
["A","6 Function Adjustable Luxury Shower Head - High Pressure Boosting, Wall Mount, Bathroom Showerhead For Low Flow Showers - Chrome"]
["A","KOHLER K-10282-AK-CP Forte Single-Function Katalyst Showerhead, Polished Chrome"]
["A","Shower Massage Head With Mist - High Pressure Boosting, Multi-Function, Massager Rainfall Showerhead For Low Flow Showers & Adjustable Water Saving Nozzle - Brushed Nickel"]
["A","Hansgrohe 26465001 Croma 220 Showerhead, Chrome"]
["A","Speakman S-2252-ORB Signature Brass Icon Anystream High Pressure Adjustable Shower Head, Oil-Rubbed Bronze"]
["B","WYJP 12 Inch Large Square Rain Showerhead Stainless Steel High Pressure Shower Head with Polish Chrome Finish, Ultra Thin Waterfall Full Body Coverage with Silicone Nozzle Easy to Clean and Install"]
["B","Shower Head - LIMITED TIME SALE - Rainfall High Pressure 6\" - Rain High Flow Fixed Luxury Chrome Showerhead - Removable Water Restrictor - For the Best Relaxation and Spa"]
["B","AquaSpa Giant 9-inch Diagonal Square Rain Shower Head PLUS 11-inch Solid Brass Angle Adjustable Extension Arm. 121 Jets with Rub-Clean Nozzles. Front and Back All-Chrome Finish. Sleek Square Design"]
["B","SR SUN RISE Luxury 12 Inch Large Square Stainless Steel Shower Head High Pressure Rainfall Showerhead Ultra Thin Water Saving Chrome Finish 2.5 Gpm"]
["B","12'' Square Rain Showerhead with 11'' Adjustable Extension Arm, Large Stainless Steel High Pressure Shower Head,Ultra Thin Rainfall Bath Shower with Silicone Nozzle Easy to Clean and Install"]
["B","KiaRogВ® 12 Inch (12'') Rain Brushed Shower Head. 12-Inch Side,1/16'' Ultra Thin Showerheads.30 CM * 30 CM Stainless Steel Shower"]
["B","SARLAI Solid Square Ultra Thin 304 Stainless Steel Brushed Nickel 12 Inch Adjustable Rain Shower Head ,Waterfall Full Body Coverage with Silicone Nozzle"]
["B","Large Rainfall Shower Head, Voolan Adjustable 12'' Luxury Showerhead for Bathroom, High Flow Stainless Steel Bath Shower for Best Relaxation, Universal Wall and Ceiling Mount (Square)"]
["B","LORDEAR SLE16003 Solid Square Ultra Thin 304 Stainless Steel Brushed Nickel 10 Inch Adjustable Rain Shower Head with Solid Brass Brushed Nickel 11 Inch Adjustable Extension Arm"]
["B","Rain Shower Head Stainless Steel - [NEW 2019] High Pressure 8 In Rainfall Bathroom Powerful Spray Shower Heads - Best High Flow Fixed Luxury Chrome SPA Showerhead with Adjustable Metal Swivel Ball"]
["B","Rozin Bathroom Replacement 16-inch Square Rainfall Shower Head LED Colors Top Sprayer Brushed Nickel Finish"]
["B","HealthyLifeStyle! Shower Head | Rainfall High Pressure 9.5\" with Adjustable Extension Arm | 109 Self-Clean Jets | Chrome, White and Brushed Nickel"]
["B","Rozin LED Light 16-inch Rainfall Shower Head Bathroom Square Top Sprayer Oil Rubbed Bronze(black)"]
["B","8 Inch Rain Shower Head by WaterPoint, Best High Pressure Rainfall Showerhead with Brass Swivel Ball, Polished Chrome, Uses 30% Less Water"]
["B","LORDEAR F001082SS Solid Square Ultra Thin 304 Brushed Stainless Steel 12 Inch Adjustable Rain Shower Head,Waterfall Full Body Coverage with Silicone Nozzle Easy to Clean and Install"]
["B","Shower Head,Waterfall Showerhead High Pressure Rainfall Shower Head with Polish Chrome Finish, Ultra Thin with Silicone Nozzle,Durable & Easy to Install"]
["B","Hiendure Stainless Steel Bathroom Square Rainfall Shower Head 12 Inch,oil Rubbed Bronze"]
["B","Premium Rain Shower Head 12 Inch Square Ultra-Thin Luxury Spa Experience, High Pressure Full Body Cover, Adjustable Rainfall Showerhead, Stainless Steel 304 Chrome Finish, Silicone Nozzles by Happy-li"]
["B","LORDEAR F01080CH 10 Inch Rejuvenator Rainforest Rainmaker Giant Shower Head 10 Inch 304 Stainless Steel Showerhead Polished Chrome"]
["B","Rainfall Shower Head Bronze Finish - 9 Inch Large Overhead Rain Showerhead With High Flow Big Waterfall & Luxury Rainshower Heads - Oil-Rubbed Bronze"]
["B","DreamSpa 1489 AquaFan 12 inch All-Chrome Rainfall Shower-Head with Color-Changing LED/LCD Temperature Display, 12\""]
["B","12 Inch Shower Head With 15 Inch Extension Arm, NearMoon Square Rain Shower Heads пјЊHigh Pressure Large Stainless Steel Rainfall ShowerHead With Shower Arm Waterfall Full Body Coverage Easy To Install"]
["B","Hansgrohe 27474001 Raindance Downpour AIR Showerhead, 10-Inch, Chrome"]
["B","Hansgrohe 28417001 Raindance Imperial Square AIR Shower Head, Chrome"]
["B","Hansgrohe 28403001 Raindance Imperial 600 AIR Shower Head, Chrome"]
["B","Moen S6320EP Velocity Two-Function 8-Inch Diameter Eco-Performance Rainshower Showerhead, Chrome"]
["B","GROHE 27816000 Rainshower F-Series 10\" Ceiling Shower head"]
["B","Speakman S-2005-HB-PB Hotel Anystream High Pressure 2.5 GPM Adjustable Shower Head, Polished Brass"]
["B","Waterpik Shower Head - High Pressure 6-Mode Rain Shower 2.5 GPM - Chrome, VLD-633"]
["B","Artbath Shower Trim, Ceiling Mounted 12 inch Rain Shower Head with Valve Shower Set Stainless Steel Chrome Finished"]
["B","Grohe 28373000 Rainshower Cosmopolitan 210 1-Spray Showerhead, Chrome"]
["B","Moen Waterhill One-Function 10-Inch Diameter Rainshower Showerhead, Brushed Nickel"]
["B","High Sierra's All Metal WaterSense Certified 1.8 GPM High Efficiency Low Flow Showerhead. Available in: CHROME, Brushed Nickel, Oil Rubbed Bronze, or Polished Brass"]
["B","Speakman S-3015 Retro Anystream Solid Brass High Pressure Adjustable Shower Head, Polished Chrome"]
["C","FabricMCC Rainfall Shower Head,High Pressure 9.2\" Round Shower Head for Bathroom,Ultra Thin Waterfall Showerhead,Luxury Full Chrome Finish - A Shower Head"]
["C","Rozin Bathroom 20 Inches Rain Shower Head Chrome Brass Ultrathin Shower Top Sprayer Ceiling Mounted"]
["C","KES ALL METAL 8-Inch Shower Head Fixed Mount Rainfall Style Stainless Steel, Brushed Nickel, J203S8-2"]
["C","HotelSpa MOBILIS(TM) 4-way Adjustable High-Pressure 9.5\" Rainfall Showerhead with 109 Self-Clean Jets Chrome"]
["C","ViVer Shower Head Nine Inch Certified Shower Heads Adjustable High Pressure Rain Shower Head Easy Installation no Tools Required Chrome"]
["C","Purelux Rainfall Shower Head with 16 Inch Extra Long Stainless Steel Shower Arm, Brushed Nickel Finish 5 YEAR WARRANTY"]
["C","Albustar Rainfall Shower Head, High Pressure Shower Head, 8.5'' Luxury Polished Chrome Rain Shower Head, SPA Showerheads, Easy to Install"]
["C","Vida Alegria RAIN Shower Head; 8-Inch Soft Rain; 2.5 gpm (Oil Rubbed Bronze)"]
["C","Delta Single-Spray Rain Shower Head, Chrome 52685-PK"]
["C","Artbath 12 inch Rain Shower Head Extra Large Fixed Mount Rainfall Shower Head Ultra Thin Stainless Steel Showerhead Adjustable Swivel 1/2 Ball Joint Chrome Fnished"]
["C","Yodel 12-inch Solid Square Ultra Thin Rainfall Shower Head, Brushed Stainless Steel"]
["C","Shower Head, Blusmart Round Chrome Showerhead - Rain Shower Head, with Filter,White Waterproof Rubber Coil, and Anti-Clog Silicone Nozzle Prevent Leaking for the Comfortable Shower Experience"]
["C","Rainfall Shower Head - Stainless Steel High Pressure Rain Shower Head - Self Cleaning Nozzle Universal Shower Head with Adjustable Metal Swivel Ball Joint For Bathroom Bath Tub Or Shower Stall"]
["C","JOMOO Square Rainfall Shower Head With 8.66 Inch Face High Pressure ShowerHead With Extension Arm Wall Mounted Overhead Waterfall Raincan Shower,Premium Chrome"]
["C","Brushed Nickel 8-inch Rain Shower Head, Stainless Steel Back and Brass Swivel Ball Joint"]
["C","Koko Brand Rain16 16-inch Solid Square Ultra Thin Rain Shower Head, Polished Stainless Steel (Chrome))"]
["C","Shower Head, 20 CM Large High Pressure Rainfall Shower Head, Bathroom Fixed Spray Mount made from 201 stainless steel Round Waterfall Showerhead Universal Fitting, Polished Stainless steel finish"]
["C","Hotel Spa Emerald Ultra-Luxury 8 Inch Chrome Face Rainfall Shower-Head (Without arm)"]
["C","Yodel 12 Inch Solid Square Ultra Thin Stainless Steel Rain Shower Head, Chrome Stainless #304 Steel"]
["C","MODONA 10\" Rain Shower Head and \"S\" Long Shower Arm with Flange - Satin Nickel - 5 Year Warrantee"]
["C","BWE 16 Inch Round Stainless Steel Shower Head - Rain Style Showerhead Chrome Ultra Thin"]
["C","Delta RP52382 Universal Showering Components, Touch-Clean Raincan Showerhead, Chrome"]
["C","Shower-Head: High Pressure Rainfall - 6\" Stainless Steel Luxury Rain Flow - Adjustable Brass Swivel - Silicone Nozzles Power Spray - Homequisite at home Fixed Spa Massage and Relaxation"]
["C","Drisen Products 8 inch Rain Shower Head Rain Style Chrome Finish with Solid Brass Adjustable Extension Arm"]
["C","Shower Head, Gintenco High Pressure Rainfall Large 12 Inch Round Rain Shower Heads 360 Degrees Adjustable Fixed Polished Chrome Finished"]
["C","Hiendure Stainless Shower Head (12 inch square)"]
["C","ShowerHead RainfallHigh Pressure Large Square Rain Shower Head Stainless Steel Celling Fixed Mounted Joint Chrome Showerhead - Relaxing and Enjoyable the Shower Experience (8 inchs showerhead)"]
["C","Purelux Rain Shower Head Brushed Nickel Finish, Modern Style 8 Inches Shower Heads with Brass Swivel Ball Connector & Flow Restrictor"]
["C","Luxe Rainluxe Round 8 Inch Rainfall Shower Head Replacement High Pressure High Flow Chrome Finish"]
["C","Waterpik AAD-773T DualSpray 2-in-1 Adjustable Rain Shower Head"]
["C","Kuhl 12 Inch Stainless Steel Shower Head | Stylish and Easy to Install Showerhead with Adjustable Silicone Nozzle for Full Coverage | Saves More Water with Every Shower"]
["C","Rozin 12-inch LED Color Bathroom Square Shower Head Rainfall Over-head Spray Brushed Nickel"]
["C","Ansvip 12-inch Large Rain Shower Head, Ultra-thin Luxury Rainfall Showerhead for Bathroom, SUS304 Stainless Steel Waterfall Showerhead, Adjustable Metal Swivel Ball Joint, Square"]
["C","Hiendure 16-inch Solid Square Ultra Thin 304 Stainless Steel Rainfall Shower Head, Brushed Stainless Steel"]
["C","Delta RP62283RB Universal Showering Components, Touch-Clean Raincan Showerhead, Venetian Bronze"]
["C","WantBa 8\" Wide (157 Jets) Rainfall Wall Mount Shower Head with Showerhead Swivel Metal Ball Connector Polished Chrome"]
["C","Waterfall Shower Head Square 8 Inch x 12 Inch Big Water Showerheads Brass Chrome Wall Concealed Showers For Bathroom"]
["C","Moen 21007SRN Vitalize 7 Inch Rain Shower Head Featuring Pressurized Invigorain Technology - Spot Resist Brushed Nickel"]
["C","GhomeG Square Ultra Thin 304 Stainless Steel Brushed Nickel 12 inch Adjustable Rain Shower Head with Solid Brass 11 inch Adjustable"]
["C","MODONA 10\" Rain Shower Head and 16\" Long Shower Arm with Flange - Rubbed Bronze - 5 Year Warrantee"]
["C","20'' Square Stainless Steel Rain Shower Head Rainfall Bathroom Top Sprayer New"]
["C","Fyeer 16\" LED Rainfall Shower Head Square, Ultra-thin Luxury Bathroom Showerhead Ceiling Mounted, 3-LAYER Brushed Nickel 304 Stainless Steel, Temperature Sensor 3 Colors Chaning"]
["C","Hansgrohe 26727001 Crometta Showerhead, Chrome"]
["C","Luxury Square Rainfall Shower Head with 12-inch Face, Brass Swivel Joint, Full 304 Stainless Steel,Waterfall Full Body Coverage Showerhead"]
["C","Oxygenics Curve Fixed Showerhead in Chrome"]
["C","LuckIn 12 Inch Ultra Thin Rainfall Shower Head - Stainless Steel High Pressure Showerhead with Polished Chrome Finish - Modern Waterfall Rainhead For Bathroom"]
["C","Shower Head,HDOQ 6-Inch Rainfall High Pressure Luxury Chrome Fixed ShowerHead - Removable Water Restrictor & Adjustable Metal Swivel Ball Joint - Universal Wall or Ceiling Mount"]
["C","Delta 75599C HydroRain 2-in-1 5-Spray 6 in. Fixed Shower Head with Pause in Chrome"]
["C","Rozin Brushed Nickel 16-inch Rainfall Shower Head Square Bath Top Spray"]
["C","Rozin Chrome Bathroom Rainfall Shower Head 8-inch Square Top Sprayer"]
["C","Rain 8-inch Square Shower Head Chrome Ultra-Thin Waterfall Rain Showerhead SUS304 Stainless Steel Universal Fit For Bathroom (8inch)"]
["C","Rainfall Shower Head - Heavy Duty Solid Stainless Steel Unit - Luxury High Pressure Replacement for Bathroom - Modern Polished Chrome Large Square Rainhead - Universal Wall or Ceiling Mount 12 inches"]
["C","BWE 8'' Stainless Steel Shower Head Rain Style Showerhead Elegantly Designed,8-inch Diameter, Ultra Thin, teflon tape Brushed Nickel"]
["C","LORDEAR Brass 16 Inch Long Polished Chrome Extender Tube Shower Head Extension Shower Arm, Fixed Rain Shower Head Shower Arm with Flange"]
["C","American Standard 1660.680.002 8-Inch Rain Easy Clean Showerhead, Polished Chrome"]
["C","Aquafaucet 10 Inch Square Stainless Steel Shower head with Led,oil Rubbed Bronze"]
["C","3S 304 Stainless Steel Rainfall Shower Head, 12 Inch Large Square Waterfall Shower Head,Rustproof, High Pressure Full Body Cover Adjustable."]
["C","ABS Waterfall Showerheads Chrome Bathroom Big Water Showers 200mm Shower Heads"]
["C","Kingston Brass K136A5CK Victorian 8-inch Diameter Brass Showerhead with 12-inch Shower Arm, Oil Rubbed Bronze"]
["C","KES 2.5 gpm Rain Shower Head 8 Inch for Bathroom, Brushed Nickel, Fixed Mount, J201S8-2"]
["C","Rain Shower Head, High Pressure 8 In SUS 304 Stainless Steel Rainfall Bathroom Powerful Spray Shower Heads, Adjustable Metal Swivel Ball Joint - For the Best Relaxation and Spa (Chrome)"]
["C","New 2018 High-Pressure 3-function Giant Designer Rain Shower Head w/High-Power Pulsating Massage & Whisper-Quiet(TM) Technology! More Power - Less Noise/Brass Metal Connection Nut, Anti-Clog Jets"]
["C","Rain Shower Head Stainless Steel - NEW 2018 High Pressure 4 In Rainfall Bathroom Powerful Spray Shower Heads - Best High Flow Fixed Luxury Chrome SPA Showerhead with Adjustable Metal Swivel Ball"]
["C","A-Flow Luxury Square Large 8\" Stainless Steel Rainfall Shower head - Contemporary Thin and Sleek Design, Enjoy a Soothing & Invigorating Spa-like Experience"]
["C","AKDY AZ-6021 Bathroom Chrome Shower Head, 8-inch"]
["C","Hiendure 16 Inch Rainfall Square Stainless Steel Shower Head,Oil Rubbed Bronze"]
["C","Large Rainfall Shower Head, Voolan 12\" High Flow Stainless Steel Bath Shower, High Pressure Adjustable Luxury Showerhead, Waterfall Full Body Coverage with Silicone Nozzle (12\" Round)"]
["C","Senlesen Bathroom Square 10 Inch Rainfall Shower Head Fixed Mount Oil Rubbed Bronze"]
["C","16\"Rainfall Shower Head,YAWALL Ultra-thin Stainless Steel & High Polish Chrome,Luxury Durable Rain Showerhead,Rain Style - Waterfall Effect - Enjoy a Invigorating Spa-like shower"]
["C","KES J302 Large 6-Inch Ergonomic Rotating Shower head Fixed Mount 4 Function, Polished Chrome"]
["C","ShowerMaxx |Premium 8 inch Square High Pressure Luxury Spa Rainfall Shower Head- Removable Restrictor for Waterfall Rainshower- Self Cleaning High Flow Nozzles-Oil Rubbed Bronze Finish Rain Showerhead"]
["C","MODONA 10\" Rain Shower Head - Satin Nickel - 5 Year Warrantee"]
["C","Rainfall Shower Head - High Pressure Water - Luxury Chrome Finish - 6\" Showerhead - Adjustable Brass Ball Joint - Bring The Spa To Your Home"]
["C","Shower Head,6 Inch Luxury Rainfall High Pressure Boosting,Treblewind High Flow Rain Fixed Chrome Showerhead, Adjustable Rainheads for Bathroom,Removable Water Restrictor-For the best Spa Relaxation"]
["C","Delta HydroRain 5-Spray Touch Clean 2-in-1 Rain Shower Head, Venetian Bronze 58580-RB-PK"]
["C","Hudson Reed Square Rainfall Showerhead 15.75\" In Chrome Finish"]
["C","ETERNLEAF 8\" Rainfall Shower Head, High Pressure Stainless Steel Fixed Showerhead With Self Cleaning Nozzles, Brushed Nickel Large Round Rainhead, Wall/Ceiling Mounted"]
["C","Ratop Shower Head High-Pressure Rainfall 8\""]
["C","ShowerMaxx | Fixed High Pressure Rainfall Shower Head in Polished Chrome Finish | Round 8inch Wide with Rainshower Jets | Luxury Hotel Spa Rainhead | 2.5 GPM High-Flow Powerful Waterfall Showerhead"]
["C","Senlesen Bathroom 20-inch Round Rainfall Top Shower Head Ceiling Mounted Oil Rubbed Bronze"]
["C","TurboSpa 3 Inch High Pressure Shower Head w/Flow Restrictor Melts Stress into Bliss at Full Power. 42 Nozzle Wide Spray High Flow Showerhead Drenches You Fast, No Dry Spots Guaranteed - Chrome"]
["C","Kingston Brass K125A5 Victorian Raindrop Shower Head, 10-Inch, Oil Rubbed Bronze"]
["C","Aquarius Overhead Fixed Shower Head 6\" - Luxury Spa Grade Rainfall High Pressure Rain Showerhead With 6 Spray Settings - Adjustable Metal Swivel Ball Joint & Free Teflon Tape - Premium Chrome Finish"]
["C","Luxury Rainfall Shower Head - Home Spa Square Waterfall Showerhead - Adjustable and Removable, Ultra-Thin 8 Inch Stainless Steel Rain Shower Head - High Pressure Water Flow + 2 FREE Shower Caps"]
["C","8 Inch Rain Shower Head 100% Stainless Steel [NEW 2018 Upgrades] Ultra Thin Powerful High Pressure Top Spray Bathroom Rainfall Showerhea Luxury Replacement for Bathroom Universal Wall Ceiling Mount"]
["C","KunMai Solid Brass 10\" Waterfall Square Fixed Rain Shower Head Two Functional in Chrome"]
["C","Kaphome Bathroom 20 Inches Rain Shower Head Ultrathin Shower Top Sprayer Ceiling Mounted Brush Nickel"]
["C","Round 8 inch Rainfall Shower Head - Fixed Wall or Ceiling Mounted Chrome Rain Showerhead, with Adjustable Stainless Steel Swivel Ball, Adding a Luxury Spa Waterfall Feel to Your Bathroom."]
["C","Shower Head High Pressure Adjustable Rain Showerhead Wall Mount Chrome against Low Water Pressure - 5-Setting, 2.5 GPM, 4.1 Inch"]
["C","AquaStar Elite High-Pressure 7\" Giant 6-setting Luxury Spa Rain Shower Head with Microban Antimicrobial Anti-Clog Jets for More Power & Less Cleaning! / Solid Brass Ball Join/All Chrome Finish"]
["C","BESy 12 Inch Rain Shower Head, 12\" Square Rainfall & High Pressure Stainless Steel Bath Shower Head, 1/16\" Ultra Thin, Waterfall Full Body Coverage with Silicone Nozzle, Non Fingerprint Brushed Finish"]
["C","Moen 21007 Vitalize Rainshower Shower Head Only with 1/2\" Connection, Chrome"]
["C","5 Functions Handheld Shower Head Set- 5 in 1 Multi-functional High Pressure Shower Head+ 9 Inches Big Top Overhead Showerhead Rotatable Rainfall Shower Head, 5 Spray Patterns+ 360В° Rotatable Joint"]
["C","Kingston Brass K136A5 Designer Trimscape Showerscape 8\" Round Shower Head, Oil Rubbed Bronze"]
["C","8 Inch Luxury Rainfall Square Shower Head Ultra-thin Stainless Steel Durable Showerhead Waterfall Effect Water Saving Chrome Finish"]
["C","Lovedima Luxury Dual Function Waterfall Showerhead Brass Rain Shower Head Set in Chrome"]
["C","7 colors 8\" Rainfall Round Bathroom Shower Head RGB LED Flash Light"]
["C","AKDY 6\" Extra Large Bathroom Rainfall Spray Jet Massage Fixed Shower Head, Chrome (SH0015)"]
["C","HotelSpa Square Stainless Steel 8 Inch Shower Head with Clear Acrylic Rim with Solid Brass Adjustable Extension Arm"]
["C","Sunbeam SH01690 Rainfall Round Shower head"]
["C","Toto TS111B12#PN Modern Series 12-Inch Round Aero Rain Shower Head, Polished Nickel"]
["C","3 Functions Handheld Shower Head Set- 3 in 1 High Pressure Shower Head + 8 Inches Big Top Overhead Showerhead Rotatable Rainfall Shower Head, 3 Spray Patterns+ 360В° Rotatable Joint, Baban"]
["C","Speakman S-2251-MB Signature Icon Anystream High Pressure Adjustable Solid Brass Shower Head, 2.5 GPM, Matte Black"]
["C","Waterpik XMT-633 High Pressure 6-Mode Rain Shower Head, 2.5 GPM, Chrome"]
["C","GROHE 28 521 BE0 Movario 5 Shower Head with Integrated Shower Arm, Sterling Infinity"]
["C","YOO.MEE Magic Rain Shower Heads with LED Mirror Display Water Gallon and Water Temperature for Water Saving, Energy Saving"]
["C","Cascada Classic Design 31 Inch (600mmx800mm) Large Rain Shower Set with Waterfall LED Rectangle recessed ceiling-mount 4 Function shower head, with remote control, Stainless Steel Polish Finish"]
["C","Cascada Classic Design 31 Inch (600mmx800mm) Large Rain Shower Set with Waterfall LED Rectangle recessed ceiling-mount 4 Function shower head, with remote control, Stainless Steel Polish Finish"]
["C","hm Luxury led rain shower head Large Rain LED Shower Set with Waterfall Shower head with embedded ceiling 600x800 rainfall spout"]
["C","Senlesen Rainfall 16-inch Square Shower Head High Pressure Top Spray Without Shower Arm Ceiling Mount Brushed Nickel"]
["C","Ollypulse 12'' Square Color Changing LED Stainless Steel Rain Shower Head, Oil Rubbed Bronze Finish, Black"]
["C","Senlesen LED Light 16-inch Rainfall Shower Head Bathroom Square Top Sprayer Oil Rubbed Bronze"]
["C","Chrome Brass 24 Inches Top Shower Head Bath Square Spray Head"]
["C","Grohe 26 471 Rainshower F-Series 1.8 GPM Single Function Rain Shower Head, Starlight Chrome"]
["C","Gowe Multi Function Shower Head 360500mm Stainless Steel Ceiling Rain Shower Hydro Power LED Waterfall Shower Bathroom Accessories"]
["C","hm Spa Auto-Thermostat Shower Set with 3650cm LED Rain Shower Head 6 Body Spray Bathroom Hand Spray"]
["C","AquaDance 7-inch 6-Setting Rainfall Showerhead with Anti-Microbial Microban Protection from Mold, Mildew, and Bacteria - Clog-Free Wave Blue Jets, Chrome Finish"]
["C","Delta RP53496SS Universal Showering Components, Touch-Clean Raincan Showerhead, Stainless"]
["C","GGStudy 12 Inch Square Stainless Steel Shower Head Rain Style Shower Head Oil Rubbed Bronze(Black)"]
["C","Rain Shower Head"]
["C","Tibbers Shower Head with Extension Shower Arm, High Pressure Rainfall Showerheads, Multi-Angle Adjustable, Self-Cleaning Nozzle, Sleek Full Chrome Finish"]
["C","Shower Head - Rainfall High Pressure 8\" - Rain High Flow Fixed Luxury Chrome Stainless Steel Showerhead - Removable Water Restrictor - Adjustable Metal Swivel Joint - For the Best Relaxation and Spa"]
["C","Shiratori Stainless Steel Shower Head - Rain Style Showerhead, Waterfall Effect, Elegantly Designed, High Polish Chrome, 8-inch Diameter, Ultra Thin"]
["C","GROHE 26457EN0 26457 Euphoria 260 Showerhead"]
["C","Rohl 1027/8STN Ac51X-Ib-2 1027/8 Bordano Raincan Shower Head, 6\", Satin Nickel"]
["C","Aussie Rain Shower Head with 9\" Extension - Chrome"]
["C","Toto TS112B12#CP Classic Series 12-Inch Round Aero Rain Shower Head, Polished Chrome"]
["C","Rainshower Cosmopolitan 310 Shower Head 1 Spray, Starlight Chrome"]
["C","8\" Rainfall Shower Head - 2.5gpm,BRASS Connector,Premium Chrome"]
["C","Rainshower F-Series 1-Spray 20 In. Ceiling Showerhead"]
["C","Hansgrohe 28450821 Chroma 160 Showerhead, Brushed Nickel"]
["C","Senlesen 16 Inch Solid Square LED Light Rain Shower Head High Pressure Rainfall Shower Head Polished Chrome"]
["C","KOHLER K-10282-AK-BN Forte Single-Function Katalyst Showerhead, Vibrant Brushed Nickel"]
["C","Large Stainless Steel Showerhead with Adjustable Arm | Quality 10 Inch Round Shower Head with Easy Adjustment Ball Joints | Fused Edges which Won't Split Open | Silicon Water Jets for Superior Flow"]
["C","Relexa Rustic 100 5-Spray Showerhead"]
["C","hm 24\"31\" Led Shower Head SUS304 Embeded Ceiling 3 Function Big Waterfall Curtainfall Rainfall with Remote Lighting"]
["C","hm Concealed Thermostatic Shower Set with 6Body Jet LED Shower Head 15x31.5\"(38x70CM) Rainfall Mist Spray Waterfall Water Column"]
["C","Hansgrohe Raindance Rainfall 180 Air DN 15 28433400 2-Jet Shower Head White Chrome by Hansgrohe"]
["C","Hansgrohe 27437401 Puravida Showerhead 400 with Arm, White/Chrome"]
["C","KOHLER K-9245-BN 2.5 GPM Moxie Showerhead and Wireless Speaker, Vibrant Brushed Nickel"]
["C","Toto TS111BL12#PN Modern Series 12-Inch Round 2 GPM Aero Rain Shower Head, Polished Nickel"]
["C","AQUA SPA 1240 High-power 9.5\" Rainfall Showerhead with Individual Angle-adjustable Swivel Jets"]
["C","HIGH PRESSURE Shower HeadпјЊNearmoon 6 Inch Stainless Steel Rain Showerhead, Ultra-Thin Design-Best Pressure Boosting, Awesome Shower Experience Even At Low Water Flow & Pressure(High Flow Shower Head)"]
["C","Waterpik Large RainFall+ Rain Shower Head"]
["C","Luxury Rainfall Shower Head By Urhome - 10 Inch Wide For A Spa Like Bathroom - Easy To Install No Tools Required - Eco Friendly High Flow Showerhead - Soothing And Fun"]
["C","ALFI brand RAIN24S-BSS Square Ultra Thin Rain Shower Head, 24-Inch, Brushed Stainless Steel"]
["C","Hansgrohe 27373001 Raindance E 420 AIR 2-Jet Showerhead with Showerarm, Chrome"]
["C","KOHLER K-13688-BGD 8-Inch Contemporary Round Rain Showerhead, Vibrant Moderne Brushed Gold"]
["C","Hansgrohe 10925001 Starck Shower Collection Showerhead, Arm Chrome"]
["C","Moen S6340BN 90 Degree 6\" Single-Function Showerhead with Immersion Technology at 2.5 GPM Flow Rate, Brushed Nickel"]
["C","Hiendure 12 Inch Ceiling Mount Stainless Steel Round Rainfall Shower Head, Oil Rubbed Bronze"]
["C","Rozin Rainfall 16-inch Bathroom Shower Head Square Top Spray Black Color"]
["C","Universal Chrome 8 Function Fixed Shower Head - American Standard ShowerHead w/Anti-Clogging Nozzles for best High/Low Pressure Water Saving Rain Massage Spa output"]
["C","Toto TS112BL12#CP Classic Series 12-Inch Round 2 GPM Aero Rain Shower Head, Polished Chrome"]
["C","Lovedima 20\"x40\" Stainless Steel Rectangle Shower Head Rain Showerhead Set(Without led, Brushed nickel)"]
["C","Jones Stephens S0184BN 6-Inch Shower Head, Tips, Brushed Nickel"]
["C","Grohe 28783EN0 Rainshower Cosmopolitan 400 16\" Jumbo Shower Head"]
["C","Hansgrohe 26478821 Croma Showerhead, Brushed Nickel"]
["C","Delta 52283-RB UniversalShoweringComponents Single-Setting Raincan Shower head, Venetian Bronze"]
["C","Delta RP62955SS Universal Showering Components, Rectangular Showerhead, Stainless"]
["C","Hansgrohe 27495001 Raindance S 150 AIR 3-Jet Shower Head, Chrome"]
["C","Aqua Elements Ultra Thin Rainfall High Pressure Shower Head for Bathroom - Stainless Steel - 8 inch Square - Adjustable - Tools-Free Installation"]
["C","Vida Alegria RAINFOREST Shower Head; 14x8-Inch Overhead Rain Shower (Chrome)"]
["C","Fontana Luxury Bathroom Shower Set with 16\" Rainfall Square LED Shower Head, Double-function Valve, and Brass Handheld Shower, Stainless Steel and Chrome Finish"]
["C","Minco shop - Shower Head - High Pressure Rainfall Shower Heads - 8\"Luxury Modern Chrome Look - High Flow Rain Fixed Showerhead - Rain Shower Head- For the Relaxation and Comfortableness"]
["C","Speakman S-2763 Kubos Square Rain Shower Head, Polished Chrome"]
["C","40\" Rectangular Brushed stainless steel LED Rainfall Large Shower Head Bathroom BD011-1"]
["C","Hansgrohe 27387401 Hg Raindance Select E300 Showerhead"]
["C","Moen S6345EPBN Velocity Eco-Performance Two-Function 8-1/2\" Diameter Spray Rainshower Showerhead, Brushed Nickel"]
["C","Hansgrohe 26523001 Croma Select Showerhead, Chrome"]
["C","ALFI brand RAIN12S 12-Inch Solid Square Ultra Thin Rain Shower Head, Brushed Stainless Steel"]
["C","GROHE 26502EN0 Rain Shower 310 Smartactive 2 Spray Head Set, Brushed Nickel"]
["C","Delta Single-Spray Touch Clean Rain Shower Head, Venetian Bronze RP48686RB"]
["C","AquaDance 6-inch 6-Setting Rainfall Showerhead with Anti-Microbial Microban Protection from Mold, Mildew, and Bacteria - Clog-Free Sunset Blue Jets, Chrome Finish"]
["C","Moen S6365ORB Voss 6\" Single-Function Rainshower Showerhead with Immersion Technology at 2.5 GPM Flow Rate, Oil Rubbed Bronze"]
["C","Relexa Ultra 100 5-Spray Showerhead with Integrated Shower Arm"]
["C","Showeryn Rainfall Shower Head 4 way Adjustable High Pressure 9\" Chrome"]
["C","AquaCare By HotelSpa Filtered Shower Head 5 Inch Face 6 Setting Showerhead with 3 Stage Shower Filter Cartridge Inside. (Brushed Nickel Finish)"]
["C","Fontana 8\"Sierra Oil Rubbed Bronze Multi Color Led Shower head with Adjustable Body Jets and Mixer (Solid Brass)"]
["C","16 Inch Large Square Rain Showerhead, Stainless Steel High Pressure Shower Head with Polish Chrome Finish, Ultra Thin Waterfall Full Body CoveragCoverage with Silicone Nozzle Easy to Clean and Install"]
["C","Rainmaker Rainfall Shower Head 6'' Inch Rain High Stainless Steel 304 Bath Shower - High Pressure Bath Ceiling Adjustable Showerhead - 54 Silicone Nozzles"]
["C","Hansgrohe 04340000 Raindance S 100 AIR 3-Jet Showerhead, Chrome"]
["C","BlueHills Premium Large 12-inch square high pressure 304 stainless steel rain rainfall shower head - polished ten layer chrome finish, 1 feet square with thread sealant tape"]
["C","Rozin Bathroom Square 12-inch Rain Top Spray Shower Head Oil Rubbed Bronze"]
["C","Led Shower Head - Rainfall 3 Color Changing 12\" Fixed Showerheads- Ultra-thin Anti-Clog 304 Stainless Steel Shower Spray Matte Black"]
["C","SAKAIKA SH-LS1CP 5 Inch Multi Function Adjustable 2.5 GPM Fixed Shower Head with Mist Spray & Shower Massage from the Luxury Bell Multifunction Showerhead Collection in Modern Polished Chrome Finish"]
["C","La Toscana 86CR750 Novello Wall Mount Shower Head with Arm and Flange, Chrome"]
["C","KOHLER K-13689-CP 10-Inch Contemporary Round Rain Showerhead, Polished Chrome"]
["C","Genesis Bathroom Creations 8 Inch Brass Rain Shower Head With Smart Spray - Includes Locking Extension Arm"]
["C","Moen 3638ORB 4-3/8-Inch Diameter Four-Function Fixed Showerhead, Oil-Rubbed Bronze"]
["C","Shower Head - Luxury Spa Rainfall High Pressure 8\" High Flow Rain Fixed Showerhead in Polished Chrome Finish"]
["C","Grohe 26 469 Rainshower Allure 1.8 GPM Single Function Rain Shower Head, Starlight Chrome"]
["C","Hansgrohe 27380001 Raindance E 240 AIR 1-Jet Showerhead, Chrome"]
["C","Delta 3-Spray Touch Clean H2Okinetic Shower Head, Venetian Bronze 52687-RB"]
["C","Hansgrohe 26724821 Crometta Showerhead, Brushed Nickel"]
["C","HotelSpa Square Stainless Steel 8 Inch Shower Head with Clear Acrylic Rim (without Arm)"]
["C","Waterpik RSD-133 Rain Fall Shower Head"]
["C","ALFI brand RAIN16S 16-Inch Solid Square Ultra Thin Rain Shower Head, Polished Stainless Steel"]
["C","Cascada 16 Inch Ceiling Mount Round Rainfall LED Shower Head, Stainless Steel (include Shower Arm)"]
["C","Healthy-Home Rainfall Shower Head-8 Inches Stainless Steel-Luxury High Pressure Replacement for Bathroom-Spa Experience, Polished Chrome, Easy Installation."]
["C","8\" Rainfall Shower Head - Candywe High Pressure Stainless Steel Rain Showerhead with Silicone Nozzle Ultra Thin Adjustable Swivel Polished Chrome Shower Head Thread Seal Tape Included, Easy to Install"]
["C","KOHLER K-13692-CP 8-Inch Traditional Round Rain Showerhead, Polished Chrome"]
["C","Moen S6360BN 8\" Single-Function Rainshower Showerhead with Immersion Technology at 2.5 GPM Flow Rate, Brushed Nickel"]
["C","Shower Head High Pressure 4 inch Showerhead 5-Setting Adjustable Shower Head, Rain Shower Head 2.5 gpm Showerhead Flow Restrictor High Flow Shower Heads Bathroom Powerful Shower Head Water Saving"]
["C","New Tempesta Cosmopolitan 100 4-Spray Showerhead"]
["C","Elements of Design DK1241 Hot Springs Rain Drop Shower Head, 8\" Diameter, Polished Chrome"]
["C","American Standard 1660788.278 Universal/NO Family 8\" Square RAIN SHOWERHEAD, Legacy Bronze"]
["C","Kingston Brass KX8228 Designer Trimscape ABS Square 12\" x 12\" Shower Head, Satin Nickel"]
["C","Hansgrohe 26481821 Raindance 260 x 260 Square Showerhead, Brushed Nickel"]
["C","Rohl U.5206APC U.5206 Perrin and Rowe Single Function Shower Head, 5\", Polished Chrome"]
["C","Toto TS111B12#CP Modern Series 12-Inch Round Aero Rain Shower Head, Polished Chrome"]
["C","KOHLER K-13689-BV 10-Inch Contemporary Round Rain Showerhead, Vibrant Brushed Bronze"]
["C","Powerandsoul Cosmopolitan 25 In. Retro-Fit 2-Function Hand Shower and Showerhead Bundle - 2.5 Gpm"]
["C","DAX Round Rain Shower Head, Ultra Thin, Brass Body, Chrome Finish (D-1230-CR)"]
["C","Atlantis 6 Oil Rub Bronze Rain Shower Head Combination"]
["C","KunMai Modern Solid Brass Rainfall Square Pure Black Rain Shower Head in Three Size (8 Inches)"]
["C","Moen S6310AN ExactTemp Single Function Rainfall Shower Head, Antique Nickel"]
["C","Moen 26017 2.5 GPM Rain Shower Head from the Halo Collection, Chrome"]
["C","Whitehaus WHOSA10-6-BN Showerhaus Round Rainfall Showerhead with 62 Spray Nozzles, 6-Inch, Brushed Nickel"]
["C","GROHE 26504000 Rain 310 Smart Active 2-Spray Cube Shower Head Set, Starlight Chrome"]
["C","KOHLER K-16245-CP Margaux Multifunction Showerhead, Polished Chrome"]
["C","Grohe 26 472 Rainshower Cosmopolitan 1.8 GPM Single Function Rain Shower Head, Starlight Chrome"]
["C","ALFI brand RAIN12R 12-Inch Solid Round Ultra Thin Rain Shower Head, Polished Stainless Steel"]
["C","KunMai Modern Luxurious 20\"x40\" LED Stainless Steel Rectangle Ceiling Rain Shower Head (With LED, Brushed Nickel)"]
["C","HAOXIN 8 Inch Rainfall Shower Head with S Shaped Shower Arm Fixed Rain Showerhead Set Wall Mounted,Brushed Nickel Finished,SHWA01N"]
["C","Kingston Brass K225K15 Designer Trimscape Victorian 10-inch Showerhead with 17-inch Rain Drop Shower Arm, Oil Rubbed Bronze"]
["C","Speakman S-3013 Assana Anystream High Pressure Adjustable Shower Head, Polished Chrome"]
["C","Moen S176EPBL Annex One-Function Diameter Rain Shower Eco-Performance Showerhead"]
["C","American Standard 1660.610.224 10-Inch Easy Clean Rain Showerhead, Oil Rubbed Bronze"]
["C","Vida Alegria 5-Inch Spashower High Pressure Shower Head; 2.5 gpm, 5 Sprays + Water-Saver (Brushed Nickel)"]
["C","Power and Soul Cosmopolitan 190 Shower Head - 4 Sprays"]
["C","Santec 70801388 Bright Pewter Shower 12\" Rain Shower Head 708013"]
["C","Moen S112 Waterhill One-Function 10-Inch Diameter Rainshower Showerhead, Chrome"]
["C","Waterpik RPB-173 2.5 GPM RainFall+ Shower Head, Chrome"]
["C","ALFI brand LED8S-PC Polished Chrome 8 inch Square Multi Color LED Rain Shower head"]
["C","Shower Head, Toolson High Pressure Showerhead with Anti-Clog Nozzle, Adjustable Brass Swivel Joint (Chrome Finish)"]
["C","Mirabelle MIRRS1025RCP 2.5 GPM Single Function Round Rain Shower Head"]
["C","Hansgrohe 27457001 Raindance S 120 AIR 3-Jet Shower Head, Chrome"]
["C","Rohl 1047/8STN 1047/8 Bordano Raincan Shower Head, 12\", Satin Nickel"]
["C","Rohl U.5204IB U.5204 Perrin and Rowe Single Function Shower Head, 12\", Inca Brass"]
["C","Remer by Nameeks 359SSL Shower Head"]
["C","Rohl 1047/8TCB Bordano 12\" Raincan Shower Head, Tuscan Brass"]
["C","Mirabelle MIRRS825SCP 2.5 GPM Single Function Square Rain Shower Head"]
["C","American Standard T184502.002 T184.502.002 Polished Chrome Times Square Tub and Shower Trim Package with Single Function Rain Shower Head"]
["C","ALFI brand RAIN20R-BSS Round Ultra Thin Rain Shower Head, 20-Inch, Brushed Stainless Steel"]
["C","ShowerMaxx | Elite Series | 6 Spray Settings 6 inch Adjustable High Pressure Rainfall Shower Head | MAXX-imize Your Shower with Easy-to-Remove Flow Restrictor Rain Showerhead | Polished Chrome Finish"]
["C","High Sierra's All Metal 1.5 GPM High Efficiency Low Flow Showerhead. Available in: Chrome, BRUSHED NICKEL, Oil Rubbed Bronze, or Polished Brass"]
["C","American Standard 9035001.278 Spectra+ Rain Showerhead, Legacy Bronze"]
["C","KunMai 24\" LED Stainless Steel Square Ceiling Rain Shower Head with 2 Water Inlets (Chrome, With LED)"]
["C","Atlantis 2 Rain Shower Head with Arm, brushed nickel"]
["C","Rohl 1047/8APC Bordano Raincan Shower Head, 12\", Polished Chrome"]
["C","JiaYouJia 16\"x32\" Rectangle 304 Stainless Steel Ceiling Rain Shower Head"]
["C","YAZOO 12 Inch Rain Shower Head, Ultra Thin 304 Stainless Steel Large Square High Pressure SPA Showerhead with Silicone Nozzle Easy to Clean and Install"]
["C","Pfister Marielle Raincan Showerhead, Brushed Nickel"]
["C","JiaYouJia Rainfall Wall Mounted Solid Brass Shower Set with Six Body Spray Jets in Solid Black Finish (with 10\" Shower Head and Thermostatic Shower Valve)"]
["C","FidgetFidget Shower Head LED Color Changing Temperature Sensor Stainless Steel Rain Chrome"]
["C","Riobel 408-C Universal Polished Chrome 8\" Rain Can Shower Head"]
["C","DFEWSF Bathroom Accessories 8 Inch Round Black Oil Bronze Brass Bathroom Rain Shower Head Black"]
["C","Delta RP52382SS Universal Showering Components, Touch-Clean Raincan Showerhead, Stainless"]
["C","AirJet-400 High Pressure Luxury Multi-Function Shower Head w/ High-Velocity Flow Accelerator(TM) Hydro-Engine for More Power with Less Water! Latest Style, Giant 5\" Face PLUS Push-button Flow Control"]
["C","Hudson Reed 12\" Apron Style Rain Shower Head With 13\" Wall Mounted Arm In Polished Chrome Finish"]
["C","KOJOX 12 Inch Rain Shower Head 304 Stainless Steel 2mm Ultra Thin High Pressure Rainfall Showerhead Water Saving (Matte Black Shower Head)"]
["C","12'' Square Stainless Steel Rain Shower Head Rainfall Bathroom Top Sprayer Ultra Thin Showerheads New"]
["C","10\"Rainfall Shower Head , Toogou Ultra-thin Stainless Steel & High Polish Chrome,Luxury Durable Rain Showerhead,Rain Style & Waterfall Effect - Enjoy a Invigorating shower"]
["C","KunMai Luxury Dual Function Wall Mounted Waterfall Rain Shower Head Solid Brass in Chrome"]
["C","Moen S176BL Annex One-Function Diameter Rain Shower Showerhead, Matte Black"]
["C","Riobel 492-C Universal Polished Chrome 12\" Rain Shower Head"]
["C","KOHLER K-13693-CP 10-Inch Traditional Round Rain Showerhead, Polished Chrome"]
["C","Delta Single-Spray Touch Clean Shower Head, Stainless (RP51305SS)"]
["C","KOHLER K-14786-BN Loure Single-Function Showerhead, Vibrant Brushed Nickel"]
["C","ALFI brand LED16S-BN Brushed Nickel 16 inch Square Multi Color LED Rain Shower head"]
["C","Grohe 27823EN0 Rainshower Retro Showerhead in Infinity Brushed Nickel"]
["C","Kingston Brass K124A5 Victorian Raindrop Showerhead, Oil Rubbed Bronze"]
["C","Hansgrohe 28471921 Raindance C 150 AIR Shower Head, Rubbed Bronze"]
["C","Coeur Designs Premium 6 inch, 50 Jet Stainless Steel Rainfall Shower Head Delivers a Powerful, Stress Relieving, Massage-Like Experience. Quality Construction and Aesthetically Pleasing!"]
["C","12 Inch Ceiling Mount Square Rainfall LED Shower Head, Stainless Steel with Chrome Finish (include Shower Arm)"]
["C","Hansgrohe 27447821 Raindance E 120 AIR 3-Jet Shower Head, Brushed Nickel"]
["C","Toto TS111BL12#CP Modern Series 12-Inch Round 2 GPM Aero Rain Shower Head, Polished Chrome"]
["C","Cascada 20 Inch Ceiling Mount Round Rainfall LED Shower Head, Brushed Nickel ((Without Shower Arm)"]
["C","Santec 70803310 Polished Chrome 12\" Square Rain Shower Head"]
["C","Rozin Gold Polished LED Light 12-inch Square Rainfall Showerhead Overhead Sprayer"]
["C","Alfi RAIN16S-PSS Solid Polished Stainless Steel 16\" Square Ultra Thin Rain Shower Head, W x L 15 3/4\""]
["C","Votamuta 12-Inch LED Square Rain Shower Head Wall Mounted,Ceiling Mounted Top Shower Sprayer (Brushed Nickel)"]
["C","LaToscana 78PW750 Morana 8\" Rain Shower Head with 12\" Arm, Brushed Nickel Finish"]
["C","Rozin Wall Mounted Single Lever Mixer Valve with 10-inch Square Rainfall Shower Head Brushed Nickel"]
["C","Shower Head (12 inch shower head)"]
["C","Hansgrohe 26217001 Croma Showerhead, Chrome"]
["C","Hansgrohe HG28484821 Downpour 180 Shower Head, Brushed Nickel"]
["C","Zovajonia 8\" Rainfall Shower Head,Ultra-thin Stainless Steel & High Polish Chrome,Luxury Durable Rain Showerhead,Rain Style & Waterfall Effect - Enjoy a Invigorating Spa-like"]
["C","Speakman SR-124 Assana Anystream Multi-Function Shower Head, Polished Chrome"]
["C","A-Flow8482; Rainfall and Waterfall Luxury 4.5 Shower Head 3 Function Showerhead - Chrome"]
["C","Rain Shower Head, UNILLAP Square Wall Mounted ShowerHead Waterfall Ultra Thin 304 Stainless Steel Chrome with Silicone Nozzle (8 Inches)"]
["C","Antimicrobial/Anti-Clog High-Pressure 6-setting Shower Head by AquaDance with Microban Nozzle Protection from Growth of Mold, Mildew & Bacteria for Stronger Shower!"]
["C","20 Inch Stainless Steel Wall Mount Square Rainfall LED Shower Head. Bushed Nickel"]
["C","KOHLER K-13688-BN 8-Inch Contemporary Round Rain Showerhead, Vibrant Brushed Nickel"]
["C","FidgetFidget Shower Head Rain Shower Shower Head Temperature Changing US 24-inch LED"]
["C","Atlantis 1 Gold 10\" Rain Shower Head with 13\" High Rise Arm"]
["C","Cascada 16 Inch Ceiling Mount Round Rainfall LED Shower Head, Stainless Steel ((Without Shower Arm)"]
["C","Mirabelle MIRRS825RBN 2.5 GPM Single Function Round Rain Shower Head"]
["C","Mirabelle MIRRS825TCP 2.5 Single Function Rain Shower Head"]
["C","Jaclo S208-SN Satin Nickel 8 inch Rain Shower Head"]
["C","Euphoria Cube 25 In. Retro-Fit 2-Function Hand Shower and Showerhead Bundle- 2.5 Gpm"]
["C","Axor 28489001 Citterio Showerhead in Chrome"]
["C","Agile-shop 8 inch Square 7 Colors Automatic Changing LED Shower Head Bathroom Showerheads Sprinkler"]
["C","Hansgrohe 26469001 Raindance Select S 240 Showerhead, Chrome"]
["C","Signature Hardware 920860-12 12\" Beveled Square Single Function Rain Shower Head, Brushed Nickel"]
["C","Rozin Bathroom 10-inch Square Rainfall Shower Head Ultrathin Top Spray with LED Light"]
["C","Rainshower F-Series 1-Spray 10 In. Ceiling Showerhead"]
["C","JiaYouJia 24\" LED Stainless Steel Ceiling Mount Rain Shower Head"]
["C","12 Inch Square Rainfall LED Shower Head, Brushed Nickel Finish"]
["C","Cascada 16 Inch Ceiling Mount Square Rainfall LED Shower Head, Stainless Steel ((Without Shower Arm)"]
["C","Fontana 20'' Ceiling Mount Square Rainfall LED Shower Head, Stainless Steel"]
["C","20 Inch Luxury Large Bathroom Rain Round LED Shower Head Brushed Stainless Steel"]
["C","Toto TS111B8#CP Modern Series 8-Inch Round Aero Rain Shower Head, Polished Chrome"]
["C","US Wholesale And Retail 20\" Stainless Steel Shower Head Polished Chrome Bathroom Rain Big Showerhead"]
["C","20 Inch Rainfall Shower Head Waterfall Bathroom Ceiling Mounted Big Shower Rain Have 3 Water Inlet 4 pcs shower arms (50050010mm)"]
["C","Cascada 16 Inch Ceiling Mount Square Rainfall LED Shower Head, Oil Rubbed Bronze (Without Shower Arm)"]
["C","Isenberg HS1001WBN Solid Brass Shower Head/Rain Head with 12\" Wall Mount Shower Arm, 8\""]
["C","16 Inch Ceiling Mount Square Rainfall LED Shower Head, Stainless Steel ((Without Shower Arm)"]
["C","16 Inch Ceiling Mount Round Rainfall LED Shower Head, Stainless Steel (include Shower Arm)"]
["C","Bathroom Stainless Steel 16\" Nickel Brushed Finish Square 3 Color LED Series Rain Shower Head 74554"]
["C","GGStudy Square 8 Inch Square Stainless Steel Shower Head Rain Style Shower Head Oil Rubbed Bronze (Black)"]
["C","Hansgrohe 27483821 Raindance E 150 Shower Head, Brushed Nickel"]
["C","Rainshower F-Series 1-Spray 10 In. Showerhead"]
["C","Miseno MS-650625-R-BN Elysa Shower Trim Package with Single Function Rain Shower Head"]
["C","Mirabelle MIRRS1025SCP 2.5 GPM Single Function Square Rain Shower Head"]
["C","ALFI brand RAIN24R-BSS Round Ultra Thin Rain Shower Head, 24-Inch, Brushed Stainless Steel"]
["C","10Inch Rain Shower Head, High Pressure Stainless Steel Bath Shower, Ultra Thin Rainfall Showerhead Waterfall Body Covering with Silicone Nozzle and Powerful Spray Performance (10inch Round)"]
["C","AKDY 8\" Inch 2-Setting Dual Mode Round Circular Rainfall Waterfall Overhead Shower Head Modern Contemporary Easy Installation - White"]
["C","Hansgrohe 26528401 Croma Showerhead, White/Chrome"]
["C","Atlantis 18 Square Chrome Rain Shower to Handheld Shower Head"]
["C","Hansgrohe 28427001 Raindance C 240 AIR Showerhead, Chrome"]
["C","HotelSpa NOTILUS High-Pressure Giant 6-inch Luxury Rain Spa Shower Head 6 Settings, 2-Zone Antimicrobial Anti-Clog Nozzles, Angle-Adjustable Metal Ball Joint Connection/All-Chrome Finish"]
["C","ALFI brand RAIN12S 12-Inch Solid Square Ultra Thin Rain Shower Head, Polished Stainless Steel"]
["C","Round Rain Shower Head, 8 Inch, Polished Chrome, Elegant Design, 37-40% Water & Energy Saving"]
["C","Yanksmart 12\" Colorful Brushed Nickel Brass Square LED Rain Shower Head H542148"]
["C","Artos F803-5BN Kascade Dual Function Shower Head, Brushed Nickel"]
["C","16 Inch Ceiling Mount Round Rainfall LED Shower Head, Oil Rubbed Bronze (include Shower Arm)"]
["C","Zovajonia 8\" Rainfall Shower Head,Ultra-thin Stainless Steel & High Polish Chrome,Luxury Durable Rain Showerhead,Rain Style & Waterfall Effect"]
["C","Contemporary Rain Shower Brushed Feature forLED / Rainfall ,Shower Head"]
["C","HiendureВ® Stainless Steel Rainfall Shower Head 12 Inch Bathroom Square LED Shower Head Fixed Showerhead Without Shower Arm Thin Big Lavatory Shower Head Ceiling Mount"]
["C","Possbay Bathroom Shower Set with 24 Inches Brass Chrome Square Overhead Temperature Sensitive Rainfall LED Shower Head and Brass Handheld"]
["C","A-Flow8482; Luxury Rain 8\" Square Stainless Steel Shower Head with Acrylic Sparkling Clear Glass/Enjoy an Invigorating & Luxurious Spa-like Experience -"]
["C","Rainfall Shower headпјЊStainless Steel High Pressure 8 Inch Shower Head Replacement With Polish Chrome For Bathroom, Ultra Thin Rain shower heads with Soft Silicone self-cleaning nozzles- Powerful Spray"]
["C","Kingston Brass P10K1 Designer Trimscape Victorian Brass Shower Head With 10 Inch High-Low Decor Arm, Polished Chrome"]
["C","HotelSpa French Designer Collection 7-Setting Fixed Showerhead (Brushed Nickel)"]
["C","BOANN BNSH12C-BN Stainless Steel Round Rain Shower Head, 12\""]
["C","WATER PIK AST-233E Aquascape CHR Shower Head"]
["C","KOHLER K-13695-BN 8-Inch Contemporary Square Rain Showerhead, Vibrant Brushed Nickel"]
["C","Hansgrohe 27476001 Raindance 180 Air Shower Head, 7-Inch, Chrome"]
["C","12 inch Brass Shower Head with Color Changing LED Light (Round)"]
["C","Signature Hardware 926430-8 8\" Lambert 1.6 GPM Single Function Rain Shower Head, Brushed Nickel"]
["C","10 Inch Square Rainfall LED Shower Head, Heavy Duty Metal ((Without Shower Arm) (Polished Chrome)"]
["C","Hansgrohe 26255001 - Hansgrohe 26255001 - HG Raindance E 400 Square 1-Jet Showerhead Trim, 1.8 GPM"]
["C","Moen S1311 Isabel 8\" Two-Function Showerhead with Immersion Technology at 2.5 GPM Flow Rate, Chrome"]
["C","Bathroom 12\" Colorful Chrome Square LED Rain Stainless Steel Shower Head G45210"]
["C","1.5 GPM Sava Fixed-Mount Showerhead Finish: Chrome"]
["C","ALFI brand LED12R-BN Brushed Nickel 12\" Round Multi Color LED Rain Shower Head"]
["C","ALFI brand LED16R-PC Polished Chrome 16 inch Round Multi Color LED Rain Shower head"]
["C","Rainshower Rustic 160 4-Spray Showerhead"]
["C","Atlantis 15 Oil Rub Bronze Rain Shower Head"]
["C","Antimicrobial/Anti-Clog High-Pressure 6-setting Shower Head by AquaDance with Microban Nozzle Protection from Growth of Mold, Mildew & Bacteria for Stronger Shower!"]
["C","Brizo 81380 Single Function Rain Shower Head from the Siderna Collection, Matte Black"]
["C","Atlantis 6 Brushed Nickel Rain Showerhead Combination"]

{"sheet":"ForCode","index":2,"n_rows":131,"n_cols":10,"rows_kept":131,"cut":false,"hidden":false,"merged":[]}
["aRepl(",1,", 1) = \"","a.","\": aRepl(",{"$f":"B1","v":1},", 2) = \"","a ","\"",{"$f":"CONCATENATE(A1,B1,C1,D1,E1,F1,G1,H1,I1)","v":"aRepl(1, 1) = \"a.\": aRepl(1, 2) = \"a \""}]
["aRepl(",2,", 1) = \"","b.","\": aRepl(",{"$f":"B2","v":2},", 2) = \"","b ","\"",{"$f":"CONCATENATE(A2,B2,C2,D2,E2,F2,G2,H2,I2)","v":"aRepl(2, 1) = \"b.\": aRepl(2, 2) = \"b \""}]
["aRepl(",3,", 1) = \"","c.","\": aRepl(",3,", 2) = \"","c ","\"","aRepl(3, 1) = \"c.\": aRepl(3, 2) = \"c \""]
["aRepl(",4,", 1) = \"","d.","\": aRepl(",4,", 2) = \"","d ","\"","aRepl(4, 1) = \"d.\": aRepl(4, 2) = \"d \""]
["aRepl(",5,", 1) = \"","e.","\": aRepl(",5,", 2) = \"","e ","\"","aRepl(5, 1) = \"e.\": aRepl(5, 2) = \"e \""]
["aRepl(",6,", 1) = \"","f.","\": aRepl(",6,", 2) = \"","f ","\"","aRepl(6, 1) = \"f.\": aRepl(6, 2) = \"f \""]
["aRepl(",7,", 1) = \"","g.","\": aRepl(",7,", 2) = \"","g ","\"","aRepl(7, 1) = \"g.\": aRepl(7, 2) = \"g \""]
["aRepl(",8,", 1) = \"","h.","\": aRepl(",8,", 2) = \"","h ","\"","aRepl(8, 1) = \"h.\": aRepl(8, 2) = \"h \""]
["aRepl(",9,", 1) = \"","i.","\": aRepl(",9,", 2) = \"","i ","\"","aRepl(9, 1) = \"i.\": aRepl(9, 2) = \"i \""]
["aRepl(",10,", 1) = \"","j.","\": aRepl(",10,", 2) = \"","j ","\"","aRepl(10, 1) = \"j.\": aRepl(10, 2) = \"j \""]
["aRepl(",11,", 1) = \"","k.","\": aRepl(",11,", 2) = \"","k ","\"","aRepl(11, 1) = \"k.\": aRepl(11, 2) = \"k \""]
["aRepl(",12,", 1) = \"","l.","\": aRepl(",12,", 2) = \"","l ","\"","aRepl(12, 1) = \"l.\": aRepl(12, 2) = \"l \""]
["aRepl(",13,", 1) = \"","m.","\": aRepl(",13,", 2) = \"","m ","\"","aRepl(13, 1) = \"m.\": aRepl(13, 2) = \"m \""]
["aRepl(",14,", 1) = \"","n.","\": aRepl(",14,", 2) = \"","n ","\"","aRepl(14, 1) = \"n.\": aRepl(14, 2) = \"n \""]
["aRepl(",15,", 1) = \"","o.","\": aRepl(",15,", 2) = \"","o ","\"","aRepl(15, 1) = \"o.\": aRepl(15, 2) = \"o \""]
["aRepl(",16,", 1) = \"","p.","\": aRepl(",16,", 2) = \"","p ","\"","aRepl(16, 1) = \"p.\": aRepl(16, 2) = \"p \""]
["aRepl(",17,", 1) = \"","q.","\": aRepl(",17,", 2) = \"","q ","\"","aRepl(17, 1) = \"q.\": aRepl(17, 2) = \"q \""]
["aRepl(",18,", 1) = \"","r.","\": aRepl(",18,", 2) = \"","r ","\"","aRepl(18, 1) = \"r.\": aRepl(18, 2) = \"r \""]
["aRepl(",19,", 1) = \"","s.","\": aRepl(",19,", 2) = \"","s ","\"","aRepl(19, 1) = \"s.\": aRepl(19, 2) = \"s \""]
["aRepl(",20,", 1) = \"","t.","\": aRepl(",20,", 2) = \"","t ","\"","aRepl(20, 1) = \"t.\": aRepl(20, 2) = \"t \""]
["aRepl(",21,", 1) = \"","u.","\": aRepl(",21,", 2) = \"","u ","\"","aRepl(21, 1) = \"u.\": aRepl(21, 2) = \"u \""]
["aRepl(",22,", 1) = \"","v.","\": aRepl(",22,", 2) = \"","v ","\"","aRepl(22, 1) = \"v.\": aRepl(22, 2) = \"v \""]
["aRepl(",23,", 1) = \"","w.","\": aRepl(",23,", 2) = \"","w ","\"","aRepl(23, 1) = \"w.\": aRepl(23, 2) = \"w \""]
["aRepl(",24,", 1) = \"","x.","\": aRepl(",24,", 2) = \"","x ","\"","aRepl(24, 1) = \"x.\": aRepl(24, 2) = \"x \""]
["aRepl(",25,", 1) = \"","y.","\": aRepl(",25,", 2) = \"","y ","\"","aRepl(25, 1) = \"y.\": aRepl(25, 2) = \"y \""]
["aRepl(",26,", 1) = \"","z.","\": aRepl(",26,", 2) = \"","z ","\"","aRepl(26, 1) = \"z.\": aRepl(26, 2) = \"z \""]
["aRepl(",27,", 1) = \"",". ","\": aRepl(",27,", 2) = \""," ","\"","aRepl(27, 1) = \". \": aRepl(27, 2) = \" \""]
["aRepl(",28,", 1) = \"","A","\": aRepl(",28,", 2) = \"","a","\"","aRepl(28, 1) = \"A\": aRepl(28, 2) = \"a\""]
["aRepl(",29,", 1) = \"","B","\": aRepl(",29,", 2) = \"","b","\"","aRepl(29, 1) = \"B\": aRepl(29, 2) = \"b\""]
["aRepl(",30,", 1) = \"","C","\": aRepl(",30,", 2) = \"","c","\"","aRepl(30, 1) = \"C\": aRepl(30, 2) = \"c\""]
["aRepl(",31,", 1) = \"","D","\": aRepl(",31,", 2) = \"","d","\"","aRepl(31, 1) = \"D\": aRepl(31, 2) = \"d\""]
["aRepl(",32,", 1) = \"","E","\": aRepl(",32,", 2) = \"","e","\"","aRepl(32, 1) = \"E\": aRepl(32, 2) = \"e\""]
["aRepl(",33,", 1) = \"","F","\": aRepl(",33,", 2) = \"","f","\"","aRepl(33, 1) = \"F\": aRepl(33, 2) = \"f\""]
["aRepl(",34,", 1) = \"","G","\": aRepl(",34,", 2) = \"","g","\"","aRepl(34, 1) = \"G\": aRepl(34, 2) = \"g\""]
["aRepl(",35,", 1) = \"","H","\": aRepl(",35,", 2) = \"","h","\"","aRepl(35, 1) = \"H\": aRepl(35, 2) = \"h\""]
["aRepl(",36,", 1) = \"","I","\": aRepl(",36,", 2) = \"","i","\"","aRepl(36, 1) = \"I\": aRepl(36, 2) = \"i\""]
["aRepl(",37,", 1) = \"","J","\": aRepl(",37,", 2) = \"","j","\"","aRepl(37, 1) = \"J\": aRepl(37, 2) = \"j\""]
["aRepl(",38,", 1) = \"","K","\": aRepl(",38,", 2) = \"","k","\"","aRepl(38, 1) = \"K\": aRepl(38, 2) = \"k\""]
["aRepl(",39,", 1) = \"","L","\": aRepl(",39,", 2) = \"","l","\"","aRepl(39, 1) = \"L\": aRepl(39, 2) = \"l\""]
["aRepl(",40,", 1) = \"","M","\": aRepl(",40,", 2) = \"","m","\"","aRepl(40, 1) = \"M\": aRepl(40, 2) = \"m\""]
["aRepl(",41,", 1) = \"","N","\": aRepl(",41,", 2) = \"","n","\"","aRepl(41, 1) = \"N\": aRepl(41, 2) = \"n\""]
["aRepl(",42,", 1) = \"","O","\": aRepl(",42,", 2) = \"","o","\"","aRepl(42, 1) = \"O\": aRepl(42, 2) = \"o\""]
["aRepl(",43,", 1) = \"","P","\": aRepl(",43,", 2) = \"","p","\"","aRepl(43, 1) = \"P\": aRepl(43, 2) = \"p\""]
["aRepl(",44,", 1) = \"","Q","\": aRepl(",44,", 2) = \"","q","\"","aRepl(44, 1) = \"Q\": aRepl(44, 2) = \"q\""]
["aRepl(",45,", 1) = \"","R","\": aRepl(",45,", 2) = \"","r","\"","aRepl(45, 1) = \"R\": aRepl(45, 2) = \"r\""]
["aRepl(",46,", 1) = \"","S","\": aRepl(",46,", 2) = \"","s","\"","aRepl(46, 1) = \"S\": aRepl(46, 2) = \"s\""]
["aRepl(",47,", 1) = \"","T","\": aRepl(",47,", 2) = \"","t","\"","aRepl(47, 1) = \"T\": aRepl(47, 2) = \"t\""]
["aRepl(",48,", 1) = \"","U","\": aRepl(",48,", 2) = \"","u","\"","aRepl(48, 1) = \"U\": aRepl(48, 2) = \"u\""]
["aRepl(",49,", 1) = \"","V","\": aRepl(",49,", 2) = \"","v","\"","aRepl(49, 1) = \"V\": aRepl(49, 2) = \"v\""]
["aRepl(",50,", 1) = \"","W","\": aRepl(",50,", 2) = \"","w","\"","aRepl(50, 1) = \"W\": aRepl(50, 2) = \"w\""]
["aRepl(",51,", 1) = \"","X","\": aRepl(",51,", 2) = \"","x","\"","aRepl(51, 1) = \"X\": aRepl(51, 2) = \"x\""]
["aRepl(",52,", 1) = \"","Y","\": aRepl(",52,", 2) = \"","y","\"","aRepl(52, 1) = \"Y\": aRepl(52, 2) = \"y\""]
["aRepl(",53,", 1) = \"","Z","\": aRepl(",53,", 2) = \"","z","\"","aRepl(53, 1) = \"Z\": aRepl(53, 2) = \"z\""]
["aRepl(",54,", 1) = \"","2-in-1","\": aRepl(",54,", 2) = \"","2inn1","\"","aRepl(54, 1) = \"2-in-1\": aRepl(54, 2) = \"2inn1\""]
["aRepl(",55,", 1) = \"","2 in 1","\": aRepl(",55,", 2) = \"","2innn1","\"","aRepl(55, 1) = \"2 in 1\": aRepl(55, 2) = \"2innn1\""]
["aRepl(",56,", 1) = \"","3-in-1","\": aRepl(",56,", 2) = \"","3inn1","\"","aRepl(56, 1) = \"3-in-1\": aRepl(56, 2) = \"3inn1\""]
["aRepl(",57,", 1) = \"","3 in 1","\": aRepl(",57,", 2) = \"","3innn1","\"","aRepl(57, 1) = \"3 in 1\": aRepl(57, 2) = \"3innn1\""]
["aRepl(",58,", 1) = \"","4-in-1","\": aRepl(",58,", 2) = \"","4inn1","\"","aRepl(58, 1) = \"4-in-1\": aRepl(58, 2) = \"4inn1\""]
["aRepl(",59,", 1) = \"","4 in 1","\": aRepl(",59,", 2) = \"","4innn1","\"","aRepl(59, 1) = \"4 in 1\": aRepl(59, 2) = \"4innn1\""]
["aRepl(",60,", 1) = \"","5-in-1","\": aRepl(",60,", 2) = \"","5inn1","\"","aRepl(60, 1) = \"5-in-1\": aRepl(60, 2) = \"5inn1\""]
["aRepl(",61,", 1) = \"","5 in 1","\": aRepl(",61,", 2) = \"","5innn1","\"","aRepl(61, 1) = \"5 in 1\": aRepl(61, 2) = \"5innn1\""]
["aRepl(",62,", 1) = \"","6-in-1","\": aRepl(",62,", 2) = \"","6inn1","\"","aRepl(62, 1) = \"6-in-1\": aRepl(62, 2) = \"6inn1\""]
["aRepl(",63,", 1) = \"","6 in 1","\": aRepl(",63,", 2) = \"","6innn1","\"","aRepl(63, 1) = \"6 in 1\": aRepl(63, 2) = \"6innn1\""]
["aRepl(",64,", 1) = \"",",","\": aRepl(",64,", 2) = \""," ","\"","aRepl(64, 1) = \",\": aRepl(64, 2) = \" \""]
["aRepl(",65,", 1) = \"","...","\": aRepl(",65,", 2) = \""," ","\"","aRepl(65, 1) = \"...\": aRepl(65, 2) = \" \""]
["aRepl(",66,", 1) = \"",";","\": aRepl(",66,", 2) = \""," ","\"","aRepl(66, 1) = \";\": aRepl(66, 2) = \" \""]
["aRepl(",67,", 1) = \"",":","\": aRepl(",67,", 2) = \""," ","\"","aRepl(67, 1) = \":\": aRepl(67, 2) = \" \""]
["aRepl(",68,", 1) = \"","&","\": aRepl(",68,", 2) = \""," ","\"","aRepl(68, 1) = \"&\": aRepl(68, 2) = \" \""]
["aRepl(",69,", 1) = \"","-","\": aRepl(",69,", 2) = \""," ","\"","aRepl(69, 1) = \"-\": aRepl(69, 2) = \" \""]
["aRepl(",70,", 1) = \"","+","\": aRepl(",70,", 2) = \""," ","\"","aRepl(70, 1) = \"+\": aRepl(70, 2) = \" \""]
["aRepl(",71,", 1) = \"","=","\": aRepl(",71,", 2) = \""," ","\"","aRepl(71, 1) = \"=\": aRepl(71, 2) = \" \""]
["aRepl(",72,", 1) = \"","|","\": aRepl(",72,", 2) = \""," ","\"","aRepl(72, 1) = \"|\": aRepl(72, 2) = \" \""]
["aRepl(",73,", 1) = \"","/","\": aRepl(",73,", 2) = \""," ","\"","aRepl(73, 1) = \"/\": aRepl(73, 2) = \" \""]
["aRepl(",74,", 1) = \"","//","\": aRepl(",74,", 2) = \""," ","\"","aRepl(74, 1) = \"//\": aRepl(74, 2) = \" \""]
["aRepl(",75,", 1) = \"","\\","\": aRepl(",75,", 2) = \""," ","\"","aRepl(75, 1) = \"\\\": aRepl(75, 2) = \" \""]
["aRepl(",76,", 1) = \"","\\\\","\": aRepl(",76,", 2) = \""," ","\"","aRepl(76, 1) = \"\\\\\": aRepl(76, 2) = \" \""]
["aRepl(",77,", 1) = \"","_","\": aRepl(",77,", 2) = \""," ","\"","aRepl(77, 1) = \"_\": aRepl(77, 2) = \" \""]
["aRepl(",78,", 1) = \"","(","\": aRepl(",78,", 2) = \""," ","\"","aRepl(78, 1) = \"(\": aRepl(78, 2) = \" \""]
["aRepl(",79,", 1) = \"","((","\": aRepl(",79,", 2) = \""," ","\"","aRepl(79, 1) = \"((\": aRepl(79, 2) = \" \""]
["aRepl(",80,", 1) = \"",")","\": aRepl(",80,", 2) = \""," ","\"","aRepl(80, 1) = \")\": aRepl(80, 2) = \" \""]
["aRepl(",81,", 1) = \"","))","\": aRepl(",81,", 2) = \""," ","\"","aRepl(81, 1) = \"))\": aRepl(81, 2) = \" \""]
["aRepl(",82,", 1) = \"","[","\": aRepl(",82,", 2) = \""," ","\"","aRepl(82, 1) = \"[\": aRepl(82, 2) = \" \""]
["aRepl(",83,", 1) = \"","]","\": aRepl(",83,", 2) = \""," ","\"","aRepl(83, 1) = \"]\": aRepl(83, 2) = \" \""]
["aRepl(",84,", 1) = \"","{","\": aRepl(",84,", 2) = \""," ","\"","aRepl(84, 1) = \"{\": aRepl(84, 2) = \" \""]
["aRepl(",85,", 1) = \"","}","\": aRepl(",85,", 2) = \""," ","\"","aRepl(85, 1) = \"}\": aRepl(85, 2) = \" \""]
["aRepl(",86,", 1) = \"","!","\": aRepl(",86,", 2) = \""," ","\"","aRepl(86, 1) = \"!\": aRepl(86, 2) = \" \""]
["aRepl(",87,", 1) = \"","~","\": aRepl(",87,", 2) = \""," ","\"","aRepl(87, 1) = \"~\": aRepl(87, 2) = \" \""]
["aRepl(",88,", 1) = \"","%","\": aRepl(",88,", 2) = \""," ","\"","aRepl(88, 1) = \"%\": aRepl(88, 2) = \" \""]
["aRepl(",89,", 1) = \"","”","\": aRepl(",89,", 2) = \""," ","\"","aRepl(89, 1) = \"”\": aRepl(89, 2) = \" \""]
["aRepl(",90,", 1) = \"","#","\": aRepl(",90,", 2) = \""," ","\"","aRepl(90, 1) = \"#\": aRepl(90, 2) = \" \""]
["aRepl(",91,", 1) = \""," for ","\": aRepl(",{"$f":"B91","v":91},", 2) = \""," ","\"",{"$f":"CONCATENATE(A91,B91,C91,D91,E91,F91,G91,H91,I91)","v":"aRepl(91, 1) = \" for \": aRepl(91, 2) = \" \""}]
["aRepl(",92,", 1) = \""," the ","\": aRepl(",92,", 2) = \""," ","\"","aRepl(92, 1) = \" the \": aRepl(92, 2) = \" \""]
["aRepl(",93,", 1) = \""," a ","\": aRepl(",93,", 2) = \""," ","\"","aRepl(93, 1) = \" a \": aRepl(93, 2) = \" \""]
["aRepl(",94,", 1) = \""," an ","\": aRepl(",94,", 2) = \""," ","\"","aRepl(94, 1) = \" an \": aRepl(94, 2) = \" \""]
["aRepl(",95,", 1) = \""," of ","\": aRepl(",95,", 2) = \""," ","\"","aRepl(95, 1) = \" of \": aRepl(95, 2) = \" \""]
["aRepl(",96,", 1) = \""," to ","\": aRepl(",96,", 2) = \""," ","\"","aRepl(96, 1) = \" to \": aRepl(96, 2) = \" \""]
["aRepl(",97,", 1) = \""," from ","\": aRepl(",97,", 2) = \""," ","\"","aRepl(97, 1) = \" from \": aRepl(97, 2) = \" \""]
["aRepl(",98,", 1) = \""," with ","\": aRepl(",98,", 2) = \""," ","\"","aRepl(98, 1) = \" with \": aRepl(98, 2) = \" \""]
["aRepl(",99,", 1) = \""," or ","\": aRepl(",99,", 2) = \""," ","\"","aRepl(99, 1) = \" or \": aRepl(99, 2) = \" \""]
["aRepl(",100,", 1) = \""," in ","\": aRepl(",100,", 2) = \""," ","\"","aRepl(100, 1) = \" in \": aRepl(100, 2) = \" \""]
["aRepl(",101,", 1) = \""," on ","\": aRepl(",101,", 2) = \""," ","\"","aRepl(101, 1) = \" on \": aRepl(101, 2) = \" \""]
["aRepl(",102,", 1) = \""," at ","\": aRepl(",102,", 2) = \""," ","\"","aRepl(102, 1) = \" at \": aRepl(102, 2) = \" \""]
["aRepl(",103,", 1) = \""," by ","\": aRepl(",103,", 2) = \""," ","\"","aRepl(103, 1) = \" by \": aRepl(103, 2) = \" \""]
["aRepl(",104,", 1) = \""," as ","\": aRepl(",104,", 2) = \""," ","\"","aRepl(104, 1) = \" as \": aRepl(104, 2) = \" \""]
["aRepl(",105,", 1) = \""," this ","\": aRepl(",105,", 2) = \""," ","\"","aRepl(105, 1) = \" this \": aRepl(105, 2) = \" \""]
["aRepl(",106,", 1) = \""," that ","\": aRepl(",106,", 2) = \""," ","\"","aRepl(106, 1) = \" that \": aRepl(106, 2) = \" \""]
["aRepl(",107,", 1) = \""," which ","\": aRepl(",107,", 2) = \""," ","\"",{"$f":"CONCATENATE(A107,B107,C107,D107,E107,F107,G107,H107,I107)","v":"aRepl(107, 1) = \" which \": aRepl(107, 2) = \" \""}]
["aRepl(",108,", 1) = \""," and ","\": aRepl(",108,", 2) = \""," ","\"","aRepl(108, 1) = \" and \": aRepl(108, 2) = \" \""]
["aRepl(",109,", 1) = \"","  ","\": aRepl(",109,", 2) = \""," ","\"","aRepl(109, 1) = \"  \": aRepl(109, 2) = \" \""]
["aRepl(",110,", 1) = \"","  ","\": aRepl(",110,", 2) = \""," ","\"","aRepl(110, 1) = \"  \": aRepl(110, 2) = \" \""]
["aRepl(",111,", 1) = \"","  ","\": aRepl(",111,", 2) = \""," ","\"","aRepl(111, 1) = \"  \": aRepl(111, 2) = \" \""]
["aRepl(",112,", 1) = \"","0 inch","\": aRepl(",112,", 2) = \"","0inch","\"","aRepl(112, 1) = \"0 inch\": aRepl(112, 2) = \"0inch\""]
["aRepl(",113,", 1) = \"","1 inch","\": aRepl(",113,", 2) = \"","1inch","\"","aRepl(113, 1) = \"1 inch\": aRepl(113, 2) = \"1inch\""]
["aRepl(",114,", 1) = \"","2 inch","\": aRepl(",114,", 2) = \"","2inch","\"","aRepl(114, 1) = \"2 inch\": aRepl(114, 2) = \"2inch\""]
["aRepl(",115,", 1) = \"","3 inch","\": aRepl(",115,", 2) = \"","3inch","\"","aRepl(115, 1) = \"3 inch\": aRepl(115, 2) = \"3inch\""]
["aRepl(",116,", 1) = \"","4 inch","\": aRepl(",116,", 2) = \"","4inch","\"","aRepl(116, 1) = \"4 inch\": aRepl(116, 2) = \"4inch\""]
["aRepl(",117,", 1) = \"","5 inch","\": aRepl(",117,", 2) = \"","5inch","\"","aRepl(117, 1) = \"5 inch\": aRepl(117, 2) = \"5inch\""]
["aRepl(",118,", 1) = \"","6 inch","\": aRepl(",118,", 2) = \"","6inch","\"","aRepl(118, 1) = \"6 inch\": aRepl(118, 2) = \"6inch\""]
["aRepl(",119,", 1) = \"","7 inch","\": aRepl(",119,", 2) = \"","7inch","\"","aRepl(119, 1) = \"7 inch\": aRepl(119, 2) = \"7inch\""]
["aRepl(",120,", 1) = \"","8 inch","\": aRepl(",120,", 2) = \"","8inch","\"","aRepl(120, 1) = \"8 inch\": aRepl(120, 2) = \"8inch\""]
["aRepl(",121,", 1) = \"","9 inch","\": aRepl(",121,", 2) = \"","9inch","\"","aRepl(121, 1) = \"9 inch\": aRepl(121, 2) = \"9inch\""]
["aRepl(",122,", 1) = \"","0 \"\" ","\": aRepl(",{"$f":"B122","v":122},", 2) = \"","0\"\" ","\"",{"$f":"CONCATENATE(A122,B122,C122,D122,E122,F122,G122,H122,I122)","v":"aRepl(122, 1) = \"0 \"\" \": aRepl(122, 2) = \"0\"\" \""}]
["aRepl(",123,", 1) = \"","1 \"\" ","\": aRepl(",123,", 2) = \"","1\"\" ","\"","aRepl(123, 1) = \"1 \"\" \": aRepl(123, 2) = \"1\"\" \""]
["aRepl(",124,", 1) = \"","2 \"\" ","\": aRepl(",124,", 2) = \"","2\"\" ","\"","aRepl(124, 1) = \"2 \"\" \": aRepl(124, 2) = \"2\"\" \""]
["aRepl(",125,", 1) = \"","3 \"\" ","\": aRepl(",125,", 2) = \"","3\"\" ","\"","aRepl(125, 1) = \"3 \"\" \": aRepl(125, 2) = \"3\"\" \""]
["aRepl(",126,", 1) = \"","4 \"\" ","\": aRepl(",126,", 2) = \"","4\"\" ","\"","aRepl(126, 1) = \"4 \"\" \": aRepl(126, 2) = \"4\"\" \""]
["aRepl(",127,", 1) = \"","5 \"\" ","\": aRepl(",127,", 2) = \"","5\"\" ","\"","aRepl(127, 1) = \"5 \"\" \": aRepl(127, 2) = \"5\"\" \""]
["aRepl(",128,", 1) = \"","6 \"\" ","\": aRepl(",128,", 2) = \"","6\"\" ","\"","aRepl(128, 1) = \"6 \"\" \": aRepl(128, 2) = \"6\"\" \""]
["aRepl(",129,", 1) = \"","7 \"\" ","\": aRepl(",129,", 2) = \"","7\"\" ","\"","aRepl(129, 1) = \"7 \"\" \": aRepl(129, 2) = \"7\"\" \""]
["aRepl(",130,", 1) = \"","8 \"\" ","\": aRepl(",130,", 2) = \"","8\"\" ","\"","aRepl(130, 1) = \"8 \"\" \": aRepl(130, 2) = \"8\"\" \""]
["aRepl(",131,", 1) = \"","9 \"\" ","\": aRepl(",131,", 2) = \"","9\"\" ","\"","aRepl(131, 1) = \"9 \"\" \": aRepl(131, 2) = \"9\"\" \""]